{"text_format":"1","workbook":"xlsx","n_sheets":6,"sheets":["Marschtabelle","Wetter- & Lawinenlage","130-Tage-Temperaturverlauf","30-Tage-Temperaturverlauf","Nebenrechnungen","Wegpunkte"],"not_rendered":{"charts":10,"images":0,"macros":1,"external_links":0,"defined_names":7,"comments":0,"pivot_tables":0},"unopened":[],"bounds":{"document_bytes":16777216,"sheet_cells":100000,"rows_first":2000,"rows_last":500,"rows_between":2000,"halvings":0,"cell_chars":16384,"cell_head_chars":4096},"cells_cut":0,"cells_raw":0,"read":"whole","date_system":"1900"}

{"sheet":"Marschtabelle","index":0,"n_rows":42,"n_cols":27,"rows_kept":42,"cut":false,"hidden":false,"merged":[[19,5,20,5],[21,5,22,5],[11,1,12,3],[13,1,14,3],[17,1,18,3],[9,5,10,5],[11,5,12,5],[13,5,14,5],[15,5,16,5],[17,5,18,5],[9,1,10,3],[12,14,12,15],[14,14,14,15],[9,14,9,15],[6,14,6,15],[7,14,7,15],[8,14,8,15],[5,14,5,17],[24,9,25,9],[18,22,18,23],[16,12,17,12],[18,9,19,9],[20,22,20,23],[22,22,22,23],[24,22,24,23],[11,16,12,17],[9,20,9,25],[24,12,25,12],[16,13,17,13],[12,13,13,13],[1,22,1,23],[1,19,1,20],[22,12,23,12],[22,13,23,13],[20,13,21,13],[7,21,8,21],[1,12,1,13],[3,18,3,20],[0,25,0,26],[0,18,0,23],[6,12,7,12],[18,13,19,13],[17,16,18,17],[19,16,20,17],[13,16,14,17],[8,12,9,12],[14,12,15,12],[14,13,15,13],[21,16,22,17],[6,16,8,17],[5,13,7,13],[15,16,16,17],[10,13,11,13],[10,14,10,15],[7,26,8,26],[5,18,5,25],[2,18,2,20],[7,18,8,18],[10,22,10,23],[7,20,8,20],[7,19,8,19],[7,22,8,23],[7,25,8,25],[35,16,36,17],[34,13,35,13],[34,22,34,23],[33,16,34,17],[36,22,36,23],[38,21,38,25],[29,16,30,17],[31,16,32,17],[30,22,30,23],[37,16,37,26],[35,14,35,15],[30,14,30,15],[34,14,34,15],[45,23,45,24],[28,9,29,9],[30,13,31,13],[30,12,31,12],[32,22,32,23],[31,1,32,3],[26,13,27,13],[35,1,36,3],[33,1,34,3],[32,9,33,9],[38,16,38,19],[39,16,39,19],[27,16,28,17],[34,12,35,12],[41,0,41,26],[34,9,35,9],[27,5,28,5],[29,5,30,5],[31,5,32,5],[33,5,34,5],[35,5,36,5],[39,21,39,25],[32,14,32,15],[28,22,28,23],[32,12,33,12],[39,0,39,2],[38,0,38,2],[32,13,33,13],[29,1,30,3],[20,12,21,12],[22,9,23,9],[39,5,39,6],[39,8,39,10],[38,5,38,6],[38,8,38,10],[23,1,24,3],[21,1,22,3],[38,12,38,14],[39,12,39,14],[29,14,29,15],[31,14,31,15],[33,14,33,15],[27,14,27,15],[28,12,29,12],[27,1,28,3],[30,9,31,9],[37,0,37,7],[25,1,26,3],[26,9,27,9],[23,5,24,5],[25,5,26,5],[6,9,7,9],[6,10,7,11],[20,9,21,9],[28,14,28,15],[25,14,25,15],[0,6,0,8],[5,8,5,9],[7,5,8,5],[0,12,0,17],[9,16,10,17],[24,13,25,13],[28,13,29,13],[26,12,27,12],[22,14,22,15],[24,14,24,15],[26,14,26,15],[21,14,21,15],[23,14,23,15],[23,16,24,17],[25,16,26,17],[1,14,1,17],[0,9,0,11],[0,3,0,5],[0,0,0,1],[3,6,3,8],[5,7,6,7],[5,10,5,11],[1,0,1,5],[1,6,1,8],[3,4,3,5],[5,0,5,4],[2,9,3,10],[1,9,1,11],[7,1,8,3],[2,3,2,6],[18,12,19,12],[10,12,11,12],[12,12,13,12],[15,1,16,3],[19,1,20,3],[11,14,11,15],[13,14,13,15],[8,13,9,13],[18,14,18,15],[20,14,20,15],[19,14,19,15],[15,14,15,15],[17,14,17,15],[16,14,16,15],[3,0,3,1],[6,1,6,3],[3,14,3,17],[16,9,17,9],[14,9,15,9],[12,9,13,9],[10,9,11,9],[8,9,9,9],[27,20,27,25],[29,20,29,25],[31,20,31,25],[33,20,33,25],[35,20,35,25],[6,20,6,25],[11,20,11,25],[13,20,13,25],[15,20,15,25],[17,20,17,25],[19,20,19,25],[21,20,21,25],[23,20,23,25],[25,20,25,25],[26,22,26,23],[12,22,12,23],[14,22,14,23],[16,22,16,23]]}
["Seite:",null,1,"/ Skitour von:",null,null,"nach:",null,null,"Datum:",null,null,"Aufstiegs- & Abfahrtsparameter (m)",null,null,null,null,null,"Maßstab- & Steigungsrechner",null,null,null,null,null,null,"LWS"]
[null,null,null,null,null,null,null,null,null,null,null,null,"Aufstieg ä",null,"Abfahrt æ",null,null,null,"1:",25000,null,"Distanz","Steigung",null,null,"oberhalb:",{"$f":"'Wetter- & Lawinenlage'!P31","v":3}]
[null,null,null,"GPS-Höhenkorrektur (+/-):",null,null,null,10,"m","Sonnenauf- & \n-untergang",null,null,"Hm/h","m/h","=","1/",3,null,"Kartenstrecke / cm:",null,null,1,"Hm:",100,null,{"$f":"'Wetter- & Lawinenlage'!$E$34","v":1800},"m ü. NN"]
["Start:",null,null,"Ende:",null,null,null,null,null,null,null,null,350,4000,"der Aufstiegszeit",null,null,null,"reale Strecke / m:",null,null,{"$f":"$T$2*$V$3/100","v":250},{"$f":"IF($X$3=\"\",\"\",DEGREES(ATAN($X$3/$V$4)))","v":21.801409486351812},{"$f":"IF(X3=\"\",\"\",\"°\")","v":"°"},null,"unterhalb:",{"$f":"'Wetter- & Lawinenlage'!S39","v":2}]
[]
["Wegpunkte",null,null,null,null,null,"GPS","Höhe\nKarte \nGPS","Marschrichtung",null,"Weg (m)",null,50,"Höhen-diffe-renz","Gehzeit",null,null,null,"Anmkerkungen (* in Restrisiko eingerechnet)"]
["lfd. Nr.","Bezeichnung",null,null,"( )*","Pausen-\nzeit","Länge O\nBreite N",null,"hin","Hilfsziel","Karte\nGPS",null,"m-\nSeil-\nlängen",null,"Weg-stück",null,"Uhrzeit gem. Plan",null,"Rest-\nrisiko","Inkl.*\nHang","Anmerkung zur Entscheidung \nüber Weg von WP(n) nach WP(n+1)",null,null,null,null,null,"POI"]
["WP","Ausgangspunkt / Hütte oder Parkplatz",null,null,null,null,null,null,"rück",null,null,null,null,null,"Zeit",null,null,null,"Gefahr-\nHöhe*","Inkl.*\nWeg","Expo-sitio.*","Gefahren-\nstelle*","Anmer-kung",null,null,"befah-ren*","|<Ab-\nstand>|*"]
[null,null,null,null,null,null,null,null,null,null,null,null,{"$f":"IF(L9=\"\",\"\",L9/$M$6)","v":""},{"$f":"IF(H10=\"\",\"\",H10-H8)","v":""},{"$f":"IF(N9=\"\",\"\",IF(N9>=0,IF(L9/$N$4*60>N9/$M$4*60,(L9/$N$4*60+N9/$M$4*30)/1440,(L9/$N$4*30+N9/$M$4*60)/1440),(IF(L9/$N$4*60>-(N9/$M$4*60),(L9/$N$4*60-N9/$M$4*30)/1440,(L9/$N$4*30-N9/$M$4*60)/1440)/$Q$3)))","v":""}]
["WP",null,null,null,null,null,null,null,{"$f":"IF(I9=\"\",\"\",IF(I9>=180,I9-180,I9+180))","v":""},null,null,{"$f":"Nebenrechnungen!AA72","v":""},null,null,{"$f":"IF(AND(O9=\"\",F8=\"\"),\"\",SUM(O9,F8))","v":""},null,{"$f":"IF($C$4=\"\",\"\",IF(O10=\"\",\"\",$C$4+O10))","v":""},null,{"$f":"IF(AND(S11=\"\",W11=\"\",T11=\"\",U11=\"\",V11=\"\",Z11=\"\",AA11=\"\"),\"\",IF(AND(W11=\"\",T11=\"\",U11=\"\",V11=\"\",Z11=\"\",AA11=\"\"),\"?\",IF(AND(T11=\"\",U11=\"\",V11=\"\",Z11=\"\",AA11=\"\"),VLOOKUP(W11,Nebenrechnungen!$AB$1:$AC$12,2,FALSE),IF(OR(V11=\"Hang\",V11=\"\"),Nebenrechnungen!V14,IF(VLOOKUP(V11,Nebenrechnungen!$H$3:$J$10,2,FALSE)=TRUE,VLOOKUP(V11,Nebenrechnungen!$H$3:$J$10,3,FALSE),Nebenrechnungen!V14)))))","v":""},null,null,null,null,null,null,null,{"$f":"IF(OR(S10<=1,S10=\"\",S10=\"?\",S10=\"WP\"),\"\",\"!\")","v":""}]
[null,null,null,null,null,null,null,null,null,null,null,null,{"$f":"IF(L11=\"\",\"\",L11/$M$6)","v":""},{"$f":"IF(H12=\"\",\"\",H12-H10)","v":""},{"$f":"IF(N11=\"\",\"\",IF(N11>=0,IF(L11/$N$4*60>N11/$M$4*60,(L11/$N$4*60+N11/$M$4*30)/1440,(L11/$N$4*30+N11/$M$4*60)/1440),(IF(L11/$N$4*60>-(N11/$M$4*60),(L11/$N$4*60-N11/$M$4*30)/1440,(L11/$N$4*30-N11/$M$4*60)/1440)/$Q$3)))","v":""}]
["WP",null,null,null,null,null,null,null,{"$f":"IF(I11=\"\",\"\",IF(I11>=180,I11-180,I11+180))","v":""},null,null,{"$f":"Nebenrechnungen!AA73","v":""},null,null,{"$f":"IF(AND(O11=\"\",F10=\"\"),\"\",SUM($O$10,$O$11,F10))","v":""},null,{"$f":"IF($C$4=\"\",\"\",IF(O12=\"\",\"\",$C$4+O12))","v":""},null,{"$f":"IF(AND(S13=\"\",W13=\"\",T13=\"\",U13=\"\",V13=\"\",Z13=\"\",AA13=\"\"),\"\",IF(AND(W13=\"\",T13=\"\",U13=\"\",V13=\"\",Z13=\"\",AA13=\"\"),\"?\",IF(AND(T13=\"\",U13=\"\",V13=\"\",Z13=\"\",AA13=\"\"),VLOOKUP(W13,Nebenrechnungen!$AB$1:$AC$12,2,FALSE),IF(OR(V13=\"Hang\",V13=\"\"),Nebenrechnungen!V15,IF(VLOOKUP(V13,Nebenrechnungen!$H$3:$J$10,2,FALSE)=TRUE,VLOOKUP(V13,Nebenrechnungen!$H$3:$J$10,3,FALSE),Nebenrechnungen!V15)))))","v":""},null,null,null,null,null,null,null,{"$f":"IF(OR(S12<=1,S12=\"\",S12=\"?\",S12=\"WP\"),\"\",\"!\")","v":""}]
[null,null,null,null,null,null,null,null,null,null,null,null,{"$f":"IF(L13=\"\",\"\",L13/$M$6)","v":""},{"$f":"IF(H14=\"\",\"\",H14-H12)","v":""},{"$f":"IF(N13=\"\",\"\",IF(N13>=0,IF(L13/$N$4*60>N13/$M$4*60,(L13/$N$4*60+N13/$M$4*30)/1440,(L13/$N$4*30+N13/$M$4*60)/1440),(IF(L13/$N$4*60>-(N13/$M$4*60),(L13/$N$4*60-N13/$M$4*30)/1440,(L13/$N$4*30-N13/$M$4*60)/1440)/$Q$3)))","v":""}]
["WP",null,null,null,null,null,null,null,{"$f":"IF(I13=\"\",\"\",IF(I13>=180,I13-180,I13+180))","v":""},null,null,{"$f":"Nebenrechnungen!AA74","v":""},null,null,{"$f":"IF(O13=\"\",\"\",SUM($O$12,$O$13,F12))","v":""},null,{"$f":"IF($C$4=\"\",\"\",IF(O14=\"\",\"\",$C$4+O14))","v":""},null,{"$f":"IF(AND(S15=\"\",W15=\"\",T15=\"\",U15=\"\",V15=\"\",Z15=\"\",AA15=\"\"),\"\",IF(AND(W15=\"\",T15=\"\",U15=\"\",V15=\"\",Z15=\"\",AA15=\"\"),\"?\",IF(AND(T15=\"\",U15=\"\",V15=\"\",Z15=\"\",AA15=\"\"),VLOOKUP(W15,Nebenrechnungen!$AB$1:$AC$12,2,FALSE),IF(OR(V15=\"Hang\",V15=\"\"),Nebenrechnungen!V16,IF(VLOOKUP(V15,Nebenrechnungen!$H$3:$J$10,2,FALSE)=TRUE,VLOOKUP(V15,Nebenrechnungen!$H$3:$J$10,3,FALSE),Nebenrechnungen!V16)))))","v":""},null,null,null,null,null,null,null,{"$f":"IF(OR(S14<=1,S14=\"\",S14=\"?\",S14=\"WP\"),\"\",\"!\")","v":""}]
[null,null,null,null,null,null,null,null,null,null,null,null,{"$f":"IF(L15=\"\",\"\",L15/$M$6)","v":""},{"$f":"IF(H16=\"\",\"\",H16-H14)","v":""},{"$f":"IF(N15=\"\",\"\",IF(N15>=0,IF(L15/$N$4*60>N15/$M$4*60,(L15/$N$4*60+N15/$M$4*30)/1440,(L15/$N$4*30+N15/$M$4*60)/1440),(IF(L15/$N$4*60>-(N15/$M$4*60),(L15/$N$4*60-N15/$M$4*30)/1440,(L15/$N$4*30-N15/$M$4*60)/1440)/$Q$3)))","v":""}]
["WP",null,null,null,null,null,null,null,{"$f":"IF(I15=\"\",\"\",IF(I15>=180,I15-180,I15+180))","v":""},null,null,{"$f":"Nebenrechnungen!AA75","v":""},null,null,{"$f":"IF(O15=\"\",\"\",SUM($O$15,$O$14,F14))","v":""},null,{"$f":"IF($C$4=\"\",\"\",IF(O16=\"\",\"\",$C$4+O16))","v":""},null,{"$f":"IF(AND(S17=\"\",W17=\"\",T17=\"\",U17=\"\",V17=\"\",Z17=\"\",AA17=\"\"),\"\",IF(AND(W17=\"\",T17=\"\",U17=\"\",V17=\"\",Z17=\"\",AA17=\"\"),\"?\",IF(AND(T17=\"\",U17=\"\",V17=\"\",Z17=\"\",AA17=\"\"),VLOOKUP(W17,Nebenrechnungen!$AB$1:$AC$12,2,FALSE),IF(OR(V17=\"Hang\",V17=\"\"),Nebenrechnungen!V17,IF(VLOOKUP(V17,Nebenrechnungen!$H$3:$J$10,2,FALSE)=TRUE,VLOOKUP(V17,Nebenrechnungen!$H$3:$J$10,3,FALSE),Nebenrechnungen!V17)))))","v":""},null,null,null,null,null,null,null,{"$f":"IF(OR(S16<=1,S16=\"\",S16=\"?\",S16=\"WP\"),\"\",\"!\")","v":""}]
[null,null,null,null,null,null,null,null,null,null,null,null,{"$f":"IF(L17=\"\",\"\",L17/$M$6)","v":""},{"$f":"IF(H18=\"\",\"\",H18-H16)","v":""},{"$f":"IF(N17=\"\",\"\",IF(N17>=0,IF(L17/$N$4*60>N17/$M$4*60,(L17/$N$4*60+N17/$M$4*30)/1440,(L17/$N$4*30+N17/$M$4*60)/1440),(IF(L17/$N$4*60>-(N17/$M$4*60),(L17/$N$4*60-N17/$M$4*30)/1440,(L17/$N$4*30-N17/$M$4*60)/1440)/$Q$3)))","v":""}]
["WP",null,null,null,null,null,null,null,{"$f":"IF(I17=\"\",\"\",IF(I17>=180,I17-180,I17+180))","v":""},null,null,{"$f":"Nebenrechnungen!AA76","v":""},null,null,{"$f":"IF(O17=\"\",\"\",SUM($O$16,$O$17,F16))","v":""},null,{"$f":"IF($C$4=\"\",\"\",IF(O18=\"\",\"\",$C$4+O18))","v":""},null,{"$f":"IF(AND(S19=\"\",W19=\"\",T19=\"\",U19=\"\",V19=\"\",Z19=\"\",AA19=\"\"),\"\",IF(AND(W19=\"\",T19=\"\",U19=\"\",V19=\"\",Z19=\"\",AA19=\"\"),\"?\",IF(AND(T19=\"\",U19=\"\",V19=\"\",Z19=\"\",AA19=\"\"),VLOOKUP(W19,Nebenrechnungen!$AB$1:$AC$12,2,FALSE),IF(OR(V19=\"Hang\",V19=\"\"),Nebenrechnungen!V18,IF(VLOOKUP(V19,Nebenrechnungen!$H$3:$J$10,2,FALSE)=TRUE,VLOOKUP(V19,Nebenrechnungen!$H$3:$J$10,3,FALSE),Nebenrechnungen!V18)))))","v":""},null,null,null,null,null,null,null,{"$f":"IF(OR(S18<=1,S18=\"\",S18=\"?\",S18=\"WP\"),\"\",\"!\")","v":""}]
[null,null,null,null,null,null,null,null,null,null,null,null,{"$f":"IF(L19=\"\",\"\",L19/$M$6)","v":""},{"$f":"IF(H20=\"\",\"\",H20-H18)","v":""},{"$f":"IF(N19=\"\",\"\",IF(N19>=0,IF(L19/$N$4*60>N19/$M$4*60,(L19/$N$4*60+N19/$M$4*30)/1440,(L19/$N$4*30+N19/$M$4*60)/1440),(IF(L19/$N$4*60>-(N19/$M$4*60),(L19/$N$4*60-N19/$M$4*30)/1440,(L19/$N$4*30-N19/$M$4*60)/1440)/$Q$3)))","v":""}]
["WP",null,null,null,null,null,null,null,{"$f":"IF(I19=\"\",\"\",IF(I19>=180,I19-180,I19+180))","v":""},null,null,{"$f":"Nebenrechnungen!AA77","v":""},null,null,{"$f":"IF(O19=\"\",\"\",SUM($O$18,$O$19,F18))","v":""},null,{"$f":"IF($C$4=\"\",\"\",IF(O20=\"\",\"\",$C$4+O20))","v":""},null,{"$f":"IF(AND(S21=\"\",W21=\"\",T21=\"\",U21=\"\",V21=\"\",Z21=\"\",AA21=\"\"),\"\",IF(AND(W21=\"\",T21=\"\",U21=\"\",V21=\"\",Z21=\"\",AA21=\"\"),\"?\",IF(AND(T21=\"\",U21=\"\",V21=\"\",Z21=\"\",AA21=\"\"),VLOOKUP(W21,Nebenrechnungen!$AB$1:$AC$12,2,FALSE),IF(OR(V21=\"Hang\",V21=\"\"),Nebenrechnungen!V19,IF(VLOOKUP(V21,Nebenrechnungen!$H$3:$J$10,2,FALSE)=TRUE,VLOOKUP(V21,Nebenrechnungen!$H$3:$J$10,3,FALSE),Nebenrechnungen!V19)))))","v":""},null,null,null,null,null,null,null,{"$f":"IF(OR(S20<=1,S20=\"\",S20=\"?\",S20=\"WP\"),\"\",\"!\")","v":""}]
[null,null,null,null,null,null,null,null,null,null,null,null,{"$f":"IF(L21=\"\",\"\",L21/$M$6)","v":""},{"$f":"IF(H22=\"\",\"\",H22-H20)","v":""},{"$f":"IF(N21=\"\",\"\",IF(N21>=0,IF(L21/$N$4*60>N21/$M$4*60,(L21/$N$4*60+N21/$M$4*30)/1440,(L21/$N$4*30+N21/$M$4*60)/1440),(IF(L21/$N$4*60>-(N21/$M$4*60),(L21/$N$4*60-N21/$M$4*30)/1440,(L21/$N$4*30-N21/$M$4*60)/1440)/$Q$3)))","v":""}]
["WP",null,null,null,null,null,null,null,{"$f":"IF(I21=\"\",\"\",IF(I21>=180,I21-180,I21+180))","v":""},null,null,{"$f":"Nebenrechnungen!AA78","v":""},null,null,{"$f":"IF(O21=\"\",\"\",SUM($O$20,$O$21,F20))","v":""},null,{"$f":"IF($C$4=\"\",\"\",IF(O22=\"\",\"\",$C$4+O22))","v":""},null,{"$f":"IF(AND(S23=\"\",W23=\"\",T23=\"\",U23=\"\",V23=\"\",Z23=\"\",AA23=\"\"),\"\",IF(AND(W23=\"\",T23=\"\",U23=\"\",V23=\"\",Z23=\"\",AA23=\"\"),\"?\",IF(AND(T23=\"\",U23=\"\",V23=\"\",Z23=\"\",AA23=\"\"),VLOOKUP(W23,Nebenrechnungen!$AB$1:$AC$12,2,FALSE),IF(OR(V23=\"Hang\",V23=\"\"),Nebenrechnungen!V20,IF(VLOOKUP(V23,Nebenrechnungen!$H$3:$J$10,2,FALSE)=TRUE,VLOOKUP(V23,Nebenrechnungen!$H$3:$J$10,3,FALSE),Nebenrechnungen!V20)))))","v":""},null,null,null,null,null,null,null,{"$f":"IF(OR(S22<=1,S22=\"\",S22=\"?\",S22=\"WP\"),\"\",\"!\")","v":""}]
[null,null,null,null,null,null,null,null,null,null,null,null,{"$f":"IF(L23=\"\",\"\",L23/$M$6)","v":""},{"$f":"IF(H24=\"\",\"\",H24-H22)","v":""},{"$f":"IF(N23=\"\",\"\",IF(N23>=0,IF(L23/$N$4*60>N23/$M$4*60,(L23/$N$4*60+N23/$M$4*30)/1440,(L23/$N$4*30+N23/$M$4*60)/1440),(IF(L23/$N$4*60>-(N23/$M$4*60),(L23/$N$4*60-N23/$M$4*30)/1440,(L23/$N$4*30-N23/$M$4*60)/1440)/$Q$3)))","v":""}]
["WP",null,null,null,null,null,null,null,{"$f":"IF(I23=\"\",\"\",IF(I23>=180,I23-180,I23+180))","v":""},null,null,{"$f":"Nebenrechnungen!AA79","v":""},null,null,{"$f":"IF(O23=\"\",\"\",SUM($O$22,$O$23,F22))","v":""},null,{"$f":"IF($C$4=\"\",\"\",IF(O24=\"\",\"\",$C$4+O24))","v":""},null,{"$f":"IF(AND(S25=\"\",W25=\"\",T25=\"\",U25=\"\",V25=\"\",Z25=\"\",AA25=\"\"),\"\",IF(AND(W25=\"\",T25=\"\",U25=\"\",V25=\"\",Z25=\"\",AA25=\"\"),\"?\",IF(AND(T25=\"\",U25=\"\",V25=\"\",Z25=\"\",AA25=\"\"),VLOOKUP(W25,Nebenrechnungen!$AB$1:$AC$12,2,FALSE),IF(OR(V25=\"Hang\",V25=\"\"),Nebenrechnungen!V21,IF(VLOOKUP(V25,Nebenrechnungen!$H$3:$J$10,2,FALSE)=TRUE,VLOOKUP(V25,Nebenrechnungen!$H$3:$J$10,3,FALSE),Nebenrechnungen!V21)))))","v":""},null,null,null,null,null,null,null,{"$f":"IF(OR(S24<=1,S24=\"\",S24=\"?\",S24=\"WP\"),\"\",\"!\")","v":""}]
[null,null,null,null,null,null,null,null,null,null,null,null,{"$f":"IF(L25=\"\",\"\",L25/$M$6)","v":""},{"$f":"IF(H26=\"\",\"\",H26-H24)","v":""},{"$f":"IF(N25=\"\",\"\",IF(N25>=0,IF(L25/$N$4*60>N25/$M$4*60,(L25/$N$4*60+N25/$M$4*30)/1440,(L25/$N$4*30+N25/$M$4*60)/1440),(IF(L25/$N$4*60>-(N25/$M$4*60),(L25/$N$4*60-N25/$M$4*30)/1440,(L25/$N$4*30-N25/$M$4*60)/1440)/$Q$3)))","v":""}]
["WP",null,null,null,null,null,null,null,{"$f":"IF(I25=\"\",\"\",IF(I25>=180,I25-180,I25+180))","v":""},null,null,{"$f":"Nebenrechnungen!AA80","v":""},null,null,{"$f":"IF(O25=\"\",\"\",SUM($O$24,$O$25,F24))","v":""},null,{"$f":"IF($C$4=\"\",\"\",IF(O26=\"\",\"\",$C$4+O26))","v":""},null,{"$f":"IF(AND(S27=\"\",W27=\"\",T27=\"\",U27=\"\",V27=\"\",Z27=\"\",AA27=\"\"),\"\",IF(AND(W27=\"\",T27=\"\",U27=\"\",V27=\"\",Z27=\"\",AA27=\"\"),\"?\",IF(AND(T27=\"\",U27=\"\",V27=\"\",Z27=\"\",AA27=\"\"),VLOOKUP(W27,Nebenrechnungen!$AB$1:$AC$12,2,FALSE),IF(OR(V27=\"Hang\",V27=\"\"),Nebenrechnungen!V22,IF(VLOOKUP(V27,Nebenrechnungen!$H$3:$J$10,2,FALSE)=TRUE,VLOOKUP(V27,Nebenrechnungen!$H$3:$J$10,3,FALSE),Nebenrechnungen!V22)))))","v":""},null,null,null,null,null,null,null,{"$f":"IF(OR(S26<=1,S26=\"\",S26=\"?\",S26=\"WP\"),\"\",\"!\")","v":""}]
[null,null,null,null,null,null,null,null,null,null,null,null,{"$f":"IF(L27=\"\",\"\",L27/$M$6)","v":""},{"$f":"IF(H28=\"\",\"\",H28-H26)","v":""},{"$f":"IF(N27=\"\",\"\",IF(N27>=0,IF(L27/$N$4*60>N27/$M$4*60,(L27/$N$4*60+N27/$M$4*30)/1440,(L27/$N$4*30+N27/$M$4*60)/1440),(IF(L27/$N$4*60>-(N27/$M$4*60),(L27/$N$4*60-N27/$M$4*30)/1440,(L27/$N$4*30-N27/$M$4*60)/1440)/$Q$3)))","v":""}]
["WP",null,null,null,null,null,null,null,{"$f":"IF(I27=\"\",\"\",IF(I27>=180,I27-180,I27+180))","v":""},null,null,{"$f":"Nebenrechnungen!AA81","v":""},null,null,{"$f":"IF(O27=\"\",\"\",SUM($O$26,$O$27,F26))","v":""},null,{"$f":"IF($C$4=\"\",\"\",IF(O28=\"\",\"\",$C$4+O28))","v":""},null,{"$f":"IF(AND(S29=\"\",W29=\"\",T29=\"\",U29=\"\",V29=\"\",Z29=\"\",AA29=\"\"),\"\",IF(AND(W29=\"\",T29=\"\",U29=\"\",V29=\"\",Z29=\"\",AA29=\"\"),\"?\",IF(AND(T29=\"\",U29=\"\",V29=\"\",Z29=\"\",AA29=\"\"),VLOOKUP(W29,Nebenrechnungen!$AB$1:$AC$12,2,FALSE),IF(OR(V29=\"Hang\",V29=\"\"),Nebenrechnungen!V23,IF(VLOOKUP(V29,Nebenrechnungen!$H$3:$J$10,2,FALSE)=TRUE,VLOOKUP(V29,Nebenrechnungen!$H$3:$J$10,3,FALSE),Nebenrechnungen!V23)))))","v":""},null,null,null,null,null,null,null,{"$f":"IF(OR(S28<=1,S28=\"\",S28=\"?\",S28=\"WP\"),\"\",\"!\")","v":""}]
[null,null,null,null,null,null,null,null,null,null,null,null,{"$f":"IF(L29=\"\",\"\",L29/$M$6)","v":""},{"$f":"IF(H30=\"\",\"\",H30-H28)","v":""},{"$f":"IF(N29=\"\",\"\",IF(N29>=0,IF(L29/$N$4*60>N29/$M$4*60,(L29/$N$4*60+N29/$M$4*30)/1440,(L29/$N$4*30+N29/$M$4*60)/1440),(IF(L29/$N$4*60>-(N29/$M$4*60),(L29/$N$4*60-N29/$M$4*30)/1440,(L29/$N$4*30-N29/$M$4*60)/1440)/$Q$3)))","v":""}]
["WP",null,null,null,null,null,null,null,{"$f":"IF(I29=\"\",\"\",IF(I29>=180,I29-180,I29+180))","v":""},null,null,{"$f":"Nebenrechnungen!AA82","v":""},null,null,{"$f":"IF(O29=\"\",\"\",SUM($O$28,$O$29,F28))","v":""},null,{"$f":"IF($C$4=\"\",\"\",IF(O30=\"\",\"\",$C$4+O30))","v":""},null,{"$f":"IF(AND(S31=\"\",W31=\"\",T31=\"\",U31=\"\",V31=\"\",Z31=\"\",AA31=\"\"),\"\",IF(AND(W31=\"\",T31=\"\",U31=\"\",V31=\"\",Z31=\"\",AA31=\"\"),\"?\",IF(AND(T31=\"\",U31=\"\",V31=\"\",Z31=\"\",AA31=\"\"),VLOOKUP(W31,Nebenrechnungen!$AB$1:$AC$12,2,FALSE),IF(OR(V31=\"Hang\",V31=\"\"),Nebenrechnungen!V24,IF(VLOOKUP(V31,Nebenrechnungen!$H$3:$J$10,2,FALSE)=TRUE,VLOOKUP(V31,Nebenrechnungen!$H$3:$J$10,3,FALSE),Nebenrechnungen!V24)))))","v":""},null,null,null,null,null,null,null,{"$f":"IF(OR(S30<=1,S30=\"\",S30=\"?\",S30=\"WP\"),\"\",\"!\")","v":""}]
[null,null,null,null,null,null,null,null,null,null,null,null,{"$f":"IF(L31=\"\",\"\",L31/$M$6)","v":""},{"$f":"IF(H32=\"\",\"\",H32-H30)","v":""},{"$f":"IF(N31=\"\",\"\",IF(N31>=0,IF(L31/$N$4*60>N31/$M$4*60,(L31/$N$4*60+N31/$M$4*30)/1440,(L31/$N$4*30+N31/$M$4*60)/1440),(IF(L31/$N$4*60>-(N31/$M$4*60),(L31/$N$4*60-N31/$M$4*30)/1440,(L31/$N$4*30-N31/$M$4*60)/1440)/$Q$3)))","v":""}]
["WP",null,null,null,null,null,null,null,{"$f":"IF(I31=\"\",\"\",IF(I31>=180,I31-180,I31+180))","v":""},null,null,{"$f":"Nebenrechnungen!AA83","v":""},null,null,{"$f":"IF(O31=\"\",\"\",SUM($O$30,$O$31,F30))","v":""},null,{"$f":"IF($C$4=\"\",\"\",IF(O32=\"\",\"\",$C$4+O32))","v":""},null,{"$f":"IF(AND(S33=\"\",W33=\"\",T33=\"\",U33=\"\",V33=\"\",Z33=\"\",AA33=\"\"),\"\",IF(AND(W33=\"\",T33=\"\",U33=\"\",V33=\"\",Z33=\"\",AA33=\"\"),\"?\",IF(AND(T33=\"\",U33=\"\",V33=\"\",Z33=\"\",AA33=\"\"),VLOOKUP(W33,Nebenrechnungen!$AB$1:$AC$12,2,FALSE),IF(OR(V33=\"Hang\",V33=\"\"),Nebenrechnungen!V25,IF(VLOOKUP(V33,Nebenrechnungen!$H$3:$J$10,2,FALSE)=TRUE,VLOOKUP(V33,Nebenrechnungen!$H$3:$J$10,3,FALSE),Nebenrechnungen!V25)))))","v":""},null,null,null,null,null,null,null,{"$f":"IF(OR(S32<=1,S32=\"\",S32=\"?\",S32=\"WP\"),\"\",\"!\")","v":""}]
[null,null,null,null,null,null,null,null,null,null,null,null,{"$f":"IF(L33=\"\",\"\",L33/$M$6)","v":""},{"$f":"IF(H34=\"\",\"\",H34-H32)","v":""},{"$f":"IF(N33=\"\",\"\",IF(N33>=0,IF(L33/$N$4*60>N33/$M$4*60,(L33/$N$4*60+N33/$M$4*30)/1440,(L33/$N$4*30+N33/$M$4*60)/1440),(IF(L33/$N$4*60>-(N33/$M$4*60),(L33/$N$4*60-N33/$M$4*30)/1440,(L33/$N$4*30-N33/$M$4*60)/1440)/$Q$3)))","v":""}]
["WP",null,null,null,null,null,null,null,{"$f":"IF(I33=\"\",\"\",IF(I33>=180,I33-180,I33+180))","v":""},null,null,{"$f":"Nebenrechnungen!AA84","v":""},null,null,{"$f":"IF(O33=\"\",\"\",SUM($O$32,$O$33,F32))","v":""},null,{"$f":"IF($C$4=\"\",\"\",IF(O34=\"\",\"\",$C$4+O34))","v":""},null,{"$f":"IF(AND(S35=\"\",W35=\"\",T35=\"\",U35=\"\",V35=\"\",Z35=\"\",AA35=\"\"),\"\",IF(AND(W35=\"\",T35=\"\",U35=\"\",V35=\"\",Z35=\"\",AA35=\"\"),\"?\",IF(AND(T35=\"\",U35=\"\",V35=\"\",Z35=\"\",AA35=\"\"),VLOOKUP(W35,Nebenrechnungen!$AB$1:$AC$12,2,FALSE),IF(OR(V35=\"Hang\",V35=\"\"),Nebenrechnungen!V26,IF(VLOOKUP(V35,Nebenrechnungen!$H$3:$J$10,2,FALSE)=TRUE,VLOOKUP(V35,Nebenrechnungen!$H$3:$J$10,3,FALSE),Nebenrechnungen!V26)))))","v":""},null,null,null,null,null,null,null,{"$f":"IF(OR(S34<=1,S34=\"\",S34=\"?\",S34=\"WP\"),\"\",\"!\")","v":""}]
[null,null,null,null,null,null,null,null,null,null,null,null,{"$f":"IF(L35=\"\",\"\",L35/$M$6)","v":""},{"$f":"IF(H36=\"\",\"\",H36-H34)","v":""},{"$f":"IF(N35=\"\",\"\",IF(N35>=0,IF(L35/$N$4*60>N35/$M$4*60,(L35/$N$4*60+N35/$M$4*30)/1440,(L35/$N$4*30+N35/$M$4*60)/1440),(IF(L35/$N$4*60>-(N35/$M$4*60),(L35/$N$4*60-N35/$M$4*30)/1440,(L35/$N$4*30-N35/$M$4*60)/1440)/$Q$3)))","v":""}]
["WP",null,null,null,null,null,null,null,{"$f":"IF(I35=\"\",\"\",IF(I35>=180,I35-180,I35+180))","v":""},null,null,{"$f":"Nebenrechnungen!AA85","v":""},null,null,{"$f":"IF(O35=\"\",\"\",SUM($O$34,$O$35,F34))","v":""},null,{"$f":"IF($C$4=\"\",\"\",IF(O36=\"\",\"\",$C$4+O36))","v":""},null,{"$f":"IF(AND(S37=\"\",W37=\"\",T37=\"\",U37=\"\",V37=\"\",Z37=\"\",AA37=\"\"),\"\",IF(AND(W37=\"\",T37=\"\",U37=\"\",V37=\"\",Z37=\"\",AA37=\"\"),\"?\",IF(AND(T37=\"\",U37=\"\",V37=\"\",Z37=\"\",AA37=\"\"),VLOOKUP(W37,Nebenrechnungen!$AB$1:$AC$12,2,FALSE),IF(OR(V37=\"Hang\",V37=\"\"),Nebenrechnungen!V27,IF(VLOOKUP(V37,Nebenrechnungen!$H$3:$J$10,2,FALSE)=TRUE,VLOOKUP(V37,Nebenrechnungen!$H$3:$J$10,3,FALSE),Nebenrechnungen!V27)))))","v":""},null,null,null,null,null,null,null,{"$f":"IF(OR(S36<=1,S36=\"\",S36=\"?\",S36=\"WP\"),\"\",\"!\")","v":""}]
[null,null,null,null,null,null,null,null,null,{"$f":"IF(I37=\"\",\"\",IF(I37>=180,I37-180,I37+180))","v":""},null,null,{"$f":"IF(L37=\"\",\"\",L37/$M$6)","v":""}]
["*) LVS: LVS-Check - Equ: Equipment-Check - HE: ggf. Harscheisen - SE: ggf. Steigeisen ",null,null,null,null,null,null,null,null,null,null,null,null,null,null,null,"\\F: abfellen - F+: auffellen - SD: Ski-Depot - SR: Ski auf Rucksack"]
["Aufstieg (Hm)",null,null,null,null,"Aufstiegsstrecke (m)",null,null,"Aufstiegzeit (hh:mm)",null,null,null,"Abfahrzeit (im Aufstieg)",null,null,null,"Rückweg (ggf. eintragen)",null,null,null,null,"Gesamtzeit (incl. ggf. Rückweg)",null,null,null,null,"å POI"]
[{"$f":"IF(N9=\"\",0,IF(N9>0,N9,0))+IF(N11=\"\",0,IF(N11>0,N11,0))+IF(N13=\"\",0,IF(N13>0,N13,0))+IF(N15=\"\",0,IF(N15>0,N15,0))+IF(N17=\"\",0,IF(N17>0,N17,0))+IF(N19=\"\",0,IF(N19>0,N19,0))+IF(N21=\"\",0,IF(N21>0,N21,0))+IF(N23=\"\",0,IF(N23>0,N23,0))+IF(N25=\"\",0,IF(N25>0,N25,0))+IF(N27=\"\",0,IF(N27>0,N27,0))+IF(N29=\"\",0,IF(N29>0,N29,0))+IF(N31=\"\",0,IF(N31>0,N31,0))+IF(N33=\"\",0,IF(N33>0,N33,0))+IF(N35=\"\",0,IF(N35>0,N35,0))","v":0},null,null,null,null,{"$f":"IF(N9=\"\",0,IF(N9>0,L9,0))+IF(N11=\"\",0,IF(N11>0,L11,0))+IF(N13=\"\",0,IF(N13>0,L13,0))+IF(N15=\"\",0,IF(N15>0,L15,0))+IF(N17=\"\",0,IF(N17>0,L17,0))+IF(N19=\"\",0,IF(N19>0,L19,0))+IF(N21=\"\",0,IF(N21>0,L21,0))+IF(N23=\"\",0,IF(N23>0,L23,0))+IF(N25=\"\",0,IF(N25>0,L25,0))+IF(N27=\"\",0,IF(N27>0,L27,0))+IF(N29=\"\",0,IF(N29>0,L29,0))+IF(N31=\"\",0,IF(N31>0,L31,0))+IF(N33=\"\",0,IF(N33>0,L33,0))+IF(N35=\"\",0,IF(N35>0,L35,0))","v":0},null,null,{"$f":"SUM(IF(O9=\"\",0,O9),IF(O11=\"\",0,O11),IF(O13=\"\",0,O13),IF(O15=\"\",0,O15),IF(O17=\"\",0,O17),IF(O19=\"\",0,O19),IF(O21=\"\",0,O21),IF(O23=\"\",0,O23),IF(O25=\"\",0,O25),IF(O27=\"\",0,O27),IF(O29=\"\",0,O29),IF(O31=\"\",0,O31),IF(O33=\"\",0,O33),IF(O35=\"\",0,O35))","v":"00:00:00"},null,null,null,{"$f":"IF(O9=\"\",0,IF(N9<0,O9,0))+IF(O11=\"\",0,IF(N11<0,O11,0))+IF(O13=\"\",0,IF(N13<0,O13,0))+IF(O15=\"\",0,IF(N15<0,O15,0))+IF(O17=\"\",0,IF(N17<0,O17,0))+IF(O19=\"\",0,IF(N19<0,O19,0))+IF(O21=\"\",0,IF(N21<0,O21,0))+IF(O23=\"\",0,IF(N23<0,O23,0))+IF(O25=\"\",0,IF(N25<0,O25,0))+IF(O27=\"\",0,IF(N27<0,O27,0))+IF(O29=\"\",0,IF(N29<0,O29,0))+IF(O31=\"\",0,IF(N31<0,O31,0))+IF(O33=\"\",0,IF(N33<0,O33,0))+IF(O35=\"\",0,IF(N35<0,O35,0))","v":"00:00:00"},null,null,null,null,null,null,null,null,{"$f":"SUM(I40,M40,IF(Q40=\"\",0,Q40))","v":"00:00:00"},null,null,null,null,{"$f":"COUNTIF(AA10:AA36,\"!\")","v":0}]
[]
["© Alexander Neveling / www.carvediem.de  ♦  Streckenzeit und Aufstiegszeit gemäß Parameter, dann größere Zeit + 1/2 kleinere Zeit  ♦  Abfahrtszeit gemäß Streckenparameter  ♦  Point of Interest (POI) Þ Sicherheitscheck vor Ort"]

{"sheet":"Wetter- & Lawinenlage","index":1,"n_rows":74,"n_cols":32,"rows_kept":74,"cut":false,"hidden":false,"merged":[[21,18,21,20],[19,6,19,7],[20,6,20,7],[19,3,20,5],[19,14,20,16],[19,18,20,20],[19,11,20,12],[21,13,21,17],[21,8,21,9],[21,11,21,12],[71,3,71,4],[69,3,69,4],[70,3,70,4],[68,3,68,4],[61,6,62,6],[65,10,65,11],[61,9,61,11],[63,10,63,11],[7,3,7,7],[10,3,10,7],[11,3,12,7],[14,3,15,7],[16,3,18,7],[21,4,21,7],[5,26,6,29],[27,3,27,7],[8,22,9,23],[7,24,10,24],[25,8,26,20],[14,11,15,12],[16,18,18,20],[27,8,27,12],[19,8,19,9],[14,8,15,9],[14,18,15,20],[20,8,20,9],[14,14,15,16],[16,8,18,9],[16,11,18,16],[27,14,27,24],[75,2,79,14],[73,3,74,5],[1,8,2,20],[7,8,7,19],[10,18,12,19],[10,8,12,9],[10,10,12,10],[10,17,12,17],[10,11,12,16],[64,10,64,11],[67,16,68,19],[61,17,63,19],[66,3,66,4],[65,3,65,4],[64,3,64,4],[63,3,63,4],[36,17,37,18],[57,26,59,31],[82,26,82,27],[30,15,33,18],[34,15,35,18],[40,18,42,19],[30,19,33,21],[38,20,39,22],[46,3,46,22],[33,4,36,6],[38,18,39,19],[55,8,57,20],[58,8,62,8],[61,7,62,7],[59,12,62,12],[61,15,63,16],[69,9,72,12],[27,26,27,35],[7,26,11,29],[15,30,16,32],[13,27,14,28],[7,31,8,32],[21,26,21,32],[19,26,20,32],[33,32,34,33],[45,3,45,22],[58,6,60,7],[28,26,29,26],[28,16,29,17],[33,26,34,26],[30,26,31,26],[28,19,29,22]]}
[]
[null,null,null,null,null,null,null,null,"Munter-Rechner"]
[]
[]
[]
[null,null,null,null,null,null,null,null,null,null,null,null,null,null,null,null,null,null,null,null,null,null,null,null,null,null,"Restrisiko"]
[]
[null,null,null,"Gefahrenpotenzial:",null,null,null,null,{"$f":"IF($P$31=1,2,IF($P$31=2,4,IF($P$31=2.5,6,IF($P$31=3,8,IF($P$31=3.5,12,IF($P$31=4,16,IF($P$31=5,\"∞\")))))))","v":8},null,null,null,null,null,null,null,null,null,null,null,null,null,null,null,null,null,{"$f":"Nebenrechnungen!V28","v":0.66666666666666663},null,null,null,null,{"$f":"IF(AA20=\"\",\"\",IF(AA20=\"Hang\",\"\",IF(VLOOKUP(AA20,Nebenrechnungen!$H$3:$J$10,2,FALSE)=TRUE,VLOOKUP(AA20,Nebenrechnungen!$H$3:$J$10,3,FALSE),\"\")))","v":""}]
[null,null,null,null,null,null,null,null,null,null,null,null,null,null,null,null,null,null,null,null,null,null,"="]
[]
[null,null,null,"Reduktionsfaktoren:",null,null,null,null,null,null,null,{"$f":"IF(AND(P31>2.5,OR(I15=1,I15=\"\")),1,PRODUCT(I15,L15,O15,S15))","v":12}]
[null,null,null,{"$f":"IF(AND(I11=\"\",L11=\"\",S11=\"\"),\"\",IF(T31=2,VLOOKUP(\"gering\",Nebenrechnungen!U2:Y4,5,FALSE),IF(OR(T31=4,T31=6),VLOOKUP(\"mäßig\",Nebenrechnungen!U2:Y4,5,FALSE),IF(T31>=8,VLOOKUP(\"erheb-lich\",Nebenrechnungen!U2:Y4,5,FALSE)))))","v":"bei \"erheblich\": \nWahl eines erstklassigen Faktors zwingend notwendig und immer unter 40° bleiben."}]
[]
[null,null,null,null,null,null,null,null,null,null,{"$f":"I15","v":3},null,null,{"$f":"IF(AND(L20=\"\",O15=\"\"),\"\",MAX(L15,O15))","v":2},null,null,null,{"$f":"S15","v":2},null,null,null,null,null,null,null,null,null,{"$f":"E34","v":1800}]
[null,null,null,"Reduktionsfaktoren:",null,null,null,null,{"$f":"IF(I20=\"\",1,Nebenrechnungen!J28)","v":3},null,null,{"$f":"IF(L20=\"\",\"\",Nebenrechnungen!K28)","v":""},null,null,{"$f":"IF(I15=\"\",1,IF(O20=\"\",\"\",Nebenrechnungen!L28))","v":2},null,null,null,{"$f":"Nebenrechnungen!M28","v":2}]
[null,null,null,null,null,null,null,null,null,null,null,null,null,null,null,null,null,null,null,null,null,null,null,null,null,null,null,null,null,null,{"$f":"Nebenrechnungen!V29","v":0.33333333333333331}]
[null,null,null,"Reduktionsqualität:",null,null,null,null,{"$f":"IF(I20=\"\",\"\",\"1. Klasse\")","v":"1. Klasse"},null,null,{"$f":"IF(AND($L$20=\"\",$O$20=\"\"),\"\",\"2. Klasse\")","v":"2. Klasse"},null,null,null,null,null,null,{"$f":"IF($S$20=\"\",\"\",\"3. Klasse\")","v":"3. Klasse"}]
[]
[]
[null,null,null,"hier Gelände-bedingungen auswählen:",null,null,"gesamter\nHang",null,"<30°",null,null,null,null,null,"stark & regelm. verspurt",null,null,null,"gr. Gruppe / Entlastungs-abstände"]
[null,null,null,null,null,null,"Weg",null,"35°"]
[null,null,null,null,"Reduktionseigenschaften:",null,null,null,{"$f":"IF(I21=\"\",\"\",\"Inklination\")","v":"Inklination"},null,null,{"$f":"IF(L20=\"\",\"\",\"Exposition\")","v":""},null,{"$f":"IF($O$20=\"\",\"\",\"Schneedecke\")","v":"Schneedecke"},null,null,null,null,{"$f":"IF($S$20=\"\",\"\",\"Belastung\")","v":"Belastung"},null,null,null,null,null,null,null,"(Gefahrenstelle)"]
[]
[]
[]
[null,null,null,null,null,null,null,null,"Daten des aktuellen Lawinenlageberichts"]
[]
[null,null,null,"Gefahrenhöhe\n(Wert auswählen)",null,null,null,null,null,null,null,null,null,null,"LWS / Gefahrenpotenzial\n(LWS auswählen)",null,null,null,null,null,null,null,null,null,null,null,"Gefahrenquellen\nin Marschtabelle und \nMunter-Rechner berücksichtigt"]
[null,null,null,null,null,null,null,null,null,null,null,null,null,null,null,null,"LWS",null,null,"Potenzial",null,null,null,null,null,null,false,true]
[null,null,null,null,null,null,null,null,null,null,null,null,null,null,null,null,null,null,null,null,null,null,null,null,null,null,null,false]
[null,null,null,null,null,null,null,null,null,null,null,null,null,null,null,3,null,null,null,{"$f":"IF($P$31=1,2,IF($P$31=2,4,IF($P$31=2.5,6,IF($P$31=3,8,IF($P$31=3.5,12,IF($P$31=4,16,IF($P$31=5,\"∞\")))))))","v":8},null,null,null,null,null,null,false]
[null,null,null,null,null,null,null,null,null,null,null,null,null,null,null,null,null,null,null,null,null,null,null,null,null,null,null,true]
[null,null,null,null,null,null,null,null,null,null,null,null,null,null,null,null,null,null,null,null,null,null,null,null,null,null,false]
[null,null,null,null,1800,null,null,null,null,null,null,null,null,null,null,null,null,null,null,null,null,null,null,null,null,null,false,true]
[null,null,null,null,null,null,null,null,null,null,null,null,null,null,null,{"$f":"IF(P31=1,\"gering\",IF(P31=2,\"mäßig\",IF(P31=3,\"erheblich\",IF(P31=4,\"groß\",IF(P31=5,\"sehr groß\",IF(P31=3.5,\"erheblich / groß\",\"\"))))))","v":"erheblich"}]
[null,null,null,null,null,null,null,null,null,null,null,null,null,null,null,null,null,null,null,null,null,null,null,null,null,null,false,false]
[null,null,null,null,null,null,null,null,null,null,null,null,null,null,null,null,null,{"$f":"E34","v":1800}]
[]
[null,null,null,null,null,null,null,null,null,null,null,null,null,null,null,null,null,null,2,null,{"$f":"IF($S$39=1,2,IF($S$39=2,4,IF($S$39=2.5,6,IF($S$39=3,8,IF($S$39=3.5,12,IF($S$39=4,16,IF($S$39=5,\"∞\")))))))","v":4}]
[]
[null,null,null,null,null,null,null,null,null,null,null,null,null,null,null,null,null,null,{"$f":"IF(S39=1,\"gering\",IF(S39=2,\"mäßig\",IF(S39=3,\"erheblich\",IF(S39=4,\"groß\",IF(S39=5,\"sehr groß\",IF(S39=3.5,\"erheblich / groß\",\"\"))))))","v":"mäßig"}]
[]
[]
[]
[]
[null,null,null,"Gefahrenstellen laut LLB\n"]
[null,null,null,"in Marschtabelle und Munter-Rechner berücksichtigt"]
[]
[]
[null,null,null,null,null,null,null,null,null,null,null,false,null,null,null,null,null,false]
[null,null,null,null,null,null,null,null,null,null,null,false,null,null,null,null,null,false]
[null,null,null,null,null,null,null,null,false,null,null,false,null,null,null,null,null,false]
[]
[]
[]
[null,null,null,null,null,null,null,null,"Weitere Informationen & Wetterprognosen"]
[]
[null,null,null,null,null,null,null,null,null,null,null,null,null,null,null,null,null,null,null,null,null,null,null,null,null,null,"Wetterdaten (lt. LLB)"]
[null,null,null,null,null,null,"Temperatur\nin Höhe:",null,"Neu-schnee\n(cm)"]
[null,null,null,null,null,null,null,null,null,null,null,null,"LWS"]
[]
[null,null,null,null,null,null,2000,3000,null,"Wind",null,null,null,null,null,{"$f":"Nebenrechnungen!$F$34","v":4},null,{"$f":"IF(J64=\"\",\"k. A.\",VLOOKUP(J64,Nebenrechnungen!L48:M54,2,FALSE))","v":"stark"}]
[]
[null,null,null,"heute",null,{"$f":"Nebenrechnungen!$B$34","v":"29.04.2012"},{"$f":"Nebenrechnungen!$C$34","v":10},{"$f":"Nebenrechnungen!$D$34","v":3},{"$f":"Nebenrechnungen!$E$34","v":0},{"$f":"Nebenrechnungen!$F$34","v":4},{"$f":"IF(J64=\"( )\",\"k. A.\",VLOOKUP(J64,Nebenrechnungen!$L$48:$M$54,2,FALSE))","v":"stark"},null,{"$f":"Nebenrechnungen!G34","v":3}]
[null,null,null,"gestern",null,{"$f":"Nebenrechnungen!$B$35","v":"28.04.2012"},{"$f":"Nebenrechnungen!$C$35","v":14},{"$f":"Nebenrechnungen!$D$35","v":6},{"$f":"Nebenrechnungen!$E$35","v":0},{"$f":"Nebenrechnungen!$F$35","v":5},{"$f":"IF(J65=\"( )\",\"k. A.\",VLOOKUP(J65,Nebenrechnungen!$L$48:$M$54,2,FALSE))","v":"stürmisch"},null,{"$f":"Nebenrechnungen!G35","v":3}]
[null,null,null,"vorgestern",null,{"$f":"Nebenrechnungen!$B$36","v":"27.04.2012"},{"$f":"Nebenrechnungen!$C$36","v":13},{"$f":"Nebenrechnungen!$D$36","v":6},{"$f":"Nebenrechnungen!$E$36","v":0},{"$f":"Nebenrechnungen!$F$36","v":4},{"$f":"IF(J66=\"( )\",\"k. A.\",VLOOKUP(J66,Nebenrechnungen!$L$48:$M$54,2,FALSE))","v":"stark"},null,{"$f":"Nebenrechnungen!G36","v":3}]
[]
[null,null,null,null,null,null,null,null,null,null,null,null,null,null,null,null,{"$f":"VLOOKUP(Nebenrechnungen!L57,Nebenrechnungen!O48:P54,2,FALSE)","v":"umfangreich"}]
[]
[null,null,null,null,null,null,null,null,null,{"$f":"VLOOKUP(Nebenrechnungen!N40,Nebenrechnungen!N41:O47,2,FALSE)","v":"zunehmend"}]
[null,null,null,null,null,null,null,10]
[]
[]
[null,null,null,"Anmerkungen:"]

{"sheet":"130-Tage-Temperaturverlauf","index":2,"n_rows":0,"n_cols":0,"rows_kept":0,"cut":false,"hidden":false,"merged":[]}

{"sheet":"30-Tage-Temperaturverlauf","index":3,"n_rows":0,"n_cols":0,"rows_kept":0,"cut":false,"hidden":false,"merged":[]}

{"sheet":"Nebenrechnungen","index":4,"n_rows":164,"n_cols":32,"rows_kept":164,"cut":false,"hidden":true,"merged":[[0,7,0,8],[0,5,0,6],[2,16,2,17],[10,13,11,13],[10,14,10,16],[10,17,10,19],[11,9,11,12],[0,16,0,17],[0,10,0,13],[69,20,69,28],[0,3,0,4],[4,7,5,7],[4,8,5,8],[4,5,4,6],[2,5,3,5],[2,6,3,6],[4,9,5,9],[10,20,12,20],[29,0,29,5],[67,12,67,17],[68,10,78,10],[67,11,70,11],[10,22,12,22],[56,12,56,16],[10,21,12,21],[29,22,30,22],[29,18,30,18],[55,12,55,17],[47,11,47,12],[47,14,47,15]]}
["Richtung","Nein",null,"Expositionsfaktoren",null,null,null,null,null,null,"Inklinationsfaktoren",null,null,null,"Steilheits-faktor","å","Risikopotenzial",null,null,null,"Feld 1","Feld 2","Feld 3","Feld 3\n(Erläuterung)",null,"aufbauende Schneeumwandlung",null,"Anmerkung",null,"Glossar","mäßig steil",{"$f":"VLOOKUP(AE1,AD2:AE74,2,FALSE)","v":"Hangneigugung weniger als 30°"}]
["N","Ja",412,1,null,"alle Ja",{"$f":"IF(AND($B$2=\"Nein\",$B$3=\"Nein\",$B$4=\"Nein\",$B$5=\"Nein\",$B$6=\"Nein\",$B$7=\"Nein\",$B$8=\"Nein\",$B$9=\"Nein\"),1,0)","v":0},"Steilheit",5,null,"<30°","<30°",4,null,{"$f":"IF($I$2=5,0,IF($I$2=4,0,IF($I$2=3,0,IF($I$2=2,0,1))))","v":0},{"$f":"M2-O2","v":4},"unter","über",null,null,"gering",null,{"$f":"MAX(J28:M28)","v":3},null,"bei \"gering\": \nWahl beliebiger Reduktionsfaktoren",null,null,"Wegpunkt","WP","abbauende Schneeumwandlung","Neuschneekristalle vereinfachen ihre Form im Bestreben, die Kugelform zu erreichen. Damit verbunden ist eine Setzung und Verfestigung des Neuschnees"]
["NO","Ja",420,1,null,null,null,"Kammlage",{"$f":"IF('Wetter- & Lawinenlage'!$L$50=TRUE,TRUE,IF($G$9=1,TRUE,FALSE))","v":false},"**x**","30°-34°","<35°",4,{"$f":"IF(G6=1,1,G2)","v":0},{"$f":"IF($I$2=5,0,IF($I$2=4,0,IF($I$2=3,1,IF($I$2=2,3,3))))","v":0},{"$f":"IF(M3-N3-O3=0,1,M3-N3-O3)","v":4},{"$f":"'Wetter- & Lawinenlage'!E34","v":1800},null,null,null,"mäßig",{"$f":"IF(OR(J28>=M28,M28=\"\"),J28,\"\")","v":3},{"$f":"IF(J28=\"\",MAX(K28:L28),IF(OR(MAX(K28:L28)>=M28,M28=\"\"),MAX(K28:L28),\"\"))","v":2},{"$f":"IF(OR(J28=\"\",J28<M28),M28,IF(M28>MAX(K28:L28),M28,\"\"))","v":""},"bei \"mäßig\": \nWahl mindestens zweier beliebiger Reduktionsfaktoren",null,null,"Umkehr-Pkt.","UP","Abstrahlung","Aussenden von Wärmestrahlung von der Schneeoberfläche an die Atmosphäre. Bei klarem Himmel kühlt sich die Schneeoberfläche dabei deutlich (einige Grad bis rund 20 Grad) unter die Lufttemperatur ab."]
["O","Ja",421,1,null,null,null,"Rinne",{"$f":"IF('Wetter- & Lawinenlage'!$I$52=TRUE,TRUE,IF($G$9=1,TRUE,FALSE))","v":false},"**x**","35°","=35°",3,null,{"$f":"IF($I$2=5,0,IF($I$2=4,0,IF($I$2=3,0,IF($I$2=2,2,2))))","v":0},{"$f":"M4-O4","v":3},{"$f":"'Wetter- & Lawinenlage'!$U$39","v":4},{"$f":"'Wetter- & Lawinenlage'!$T$31","v":8},null,null,"erheb-lich",{"$f":"IF(J28=\"\",1,J28)","v":3},{"$f":"IF(MAX(K28:L28)=\"\",1,MAX(K28:L28))","v":2},{"$f":"IF(M28=\"\",1,M28)","v":2},"bei \"erheblich\": \nWahl eines erstklassigen Faktors zwingend notwendig und immer unter 40° bleiben.",null,null,"Entsch.-Pkt.","EP","aufbauende Schneeumwandlung","Wachstum von Schneekristallen zu kantigen Kristallen und becherartigen Hohlformen. Grosse Kristalle werden immer grösser, kleine werden aufgelöst. Führt zu einem Festigkeitsverlust in der umgewandelten Schneeschicht. Erweiterte Erklärungen: Findet v.a. in Schattenlagen, bei kleinen Schneehöhen, im Frühwinter und bei staudenartiger Vegetation statt."]
["SO","Ja",414,{"$f":"IF(OR(B5=\"Nein\",$G$2=1,$G$6=1,$G$7=1),1,3)","v":3},null,"Gefahrenquellen",null,"Übergang",{"$f":"IF('Wetter- & Lawinenlage'!$L$51=TRUE,TRUE,IF($G$9=1,TRUE,FALSE))","v":false},"**x**","35°-39°","<39°",2,null,{"$f":"IF($I$2=5,0,IF($I$2=4,0,IF($I$2=3,1,IF($I$2=2,1,1))))","v":0},{"$f":"M5-O5","v":2},null,null,null,null,null,null,null,null,null,null,null,"Neuschnee",null,"Ausapern","Abschmelzen der Schneedecke, so dass der Boden ganz oder teilweise zu Tage tritt."]
["S","Ja",413,{"$f":"IF(OR(B6=\"Nein\",$G$2=1,$G$6=1,$G$7=1),1,3)","v":3},null,"krit. Neuschnee",{"$f":"IF('Wetter- & Lawinenlage'!$AA$29=TRUE,1,0)","v":0},null,null,null,">39°",">39°",1,null,null,{"$f":"M6","v":1},null,null,null,null,null,null,null,null,null,null,null,"Triebschnee",null,"Bruchharsch","Nicht tragfähiger Harschdeckel, der bei Belastung durch Wintersportler einbricht."]
["SW","Ja",418,{"$f":"IF(OR(B7=\"Nein\",$G$2=1,$G$6=1,$G$7=1),1,3)","v":3},null,"Durchfeuchtung",{"$f":"IF('Wetter- & Lawinenlage'!$AA$31=TRUE,1,0)","v":0},"schatt.Kessel",{"$f":"IF('Wetter- & Lawinenlage'!$R$50=TRUE,TRUE,IF($G$11=1,TRUE,FALSE))","v":false},"^_^_^","gr. Gruppe / Entlastungs-abstände","1-gr.Gr.",null,null,null,null,null,null,null,null,null,null,null,null,null,null,null,"Übergang","! ! !","Bruchschicht","Schicht in der Schneedecke, in der ein Bruch im Gefüge der Schneekristalle stattgefunden hat."]
["W","Ja",415,{"$f":"IF(OR(B8=\"Nein\",$G$2=1,$G$6=1,$G$7=1),1,3)","v":3},null,"Zusatzbelast.",{"$f":"IF('Wetter- & Lawinenlage'!$AA$33=TRUE,1,0)","v":0},"schatt.Wald",{"$f":"IF('Wetter- & Lawinenlage'!$R$51=TRUE,TRUE,IF($G$11=1,TRUE,FALSE))","v":false},"^_^_^","kl. Gruppe (2-4 Pers.)","2-4",null,null,null,null,null,null,null,null,null,null,null,null,null,null,null,"Nassschnee",null,"Couloir","Steile Rinne, meist in kammnaher Lage und begrenzt von blankem Fels. Oft mit Schutt durchsetzt. Bevorzugter Ort für die Bildung von Triebschneeansammlungen."]
["NW","Ja",419,1,null,"Triebschneepakete",{"$f":"IF('Wetter- & Lawinenlage'!$AA$34=TRUE,1,0)","v":0},"schatt.Steilhang",{"$f":"IF('Wetter- & Lawinenlage'!$R$52=TRUE,TRUE,IF($G$11=1,TRUE,FALSE))","v":false},"^_^_^","kl. Gruppe / Entlastungs-abstände","1-kl.Gr.",null,null,null,null,null,null,null,null,null,null,null,null,null,null,null,"Wächten","! ! !","Durchfeuchtung","Eine durchfeuchtete Schneeschicht hat eine Temperatur von 0°C, Wasser lässt sich nicht auspressen."]
[null,null,null,null,null,"Rinne/Mulde aller Expositionen",false,"Mulde",{"$f":"IF('Wetter- & Lawinenlage'!$I$52=TRUE,TRUE,IF($G$9=1,TRUE,FALSE))","v":false},"**x**",null,null,null,null,null,null,null,null,null,null,null,null,null,null,null,null,null,"störanfällig","! ! !","Durchnässung","Eine durchnässte Schneeschicht hat eine Temperatur von 0°C. Wasser ist sichtbar und kann ausgepresst werden."]
[null,null,null,null,null,"Oberflächenreif",{"$f":"IF('Wetter- & Lawinenlage'!$AA$36=TRUE,1,0)","v":0},null,null,null,null,null,null,"gering","mäßig",null,null,"erheblich",null,null,"Risiko-potenzial entspr. Höhe","Restrisiko entspr. LWS & Höhe (Munter)","Kopie",null,null,null,null,"Spalten","! ! !","eingewehte Hangzone","Hangbereich, in den durch Wind zusätzlich Schnee eingetragen wurde."]
["Marschtabelle",null,null,null,null,null,null,null,null,"Reduktionsfaktoren",null,null,null,null,null,null,null,null,null,null,null,null,null,null,null,null,null,"Absturzgefahr","! ! !","Einstrahlung","Strahlung, die auf die Schneedecke trifft. Die kurzwellige Strahlung (sichtbares Licht) wird je nach Schneeart zu rund 90% an der Oberfläche reflektiert. Der Rest erwärmt die obersten cm der Schneedecke. Langwellige Einstrahlung (Wärmestrahlung) wird praktisch zu 100% von der Schneedecke aufgenommen."]
["n","Höhe","Exp.","Inkl.\n(Weg)","Gefahren-\nstelle","Inklination\n(Gesamt-hang)","Abstände","ständig\nbefahren","Gefahren-Exposition","Inkl.-Faktor","Exp.-Faktor","Schnee-decke","Ent-lastung","MAX\n(alle)","Größter","2.-\nGrößter","Red.\nFakt.","Feld1","Feld2","Feld3",null,null,null,"alt",null,null,null,null,null,"Eislamelle","Durch Regen oder Schmelz- und Gefrierprozesse entstandene, dünne Eisschicht in der Schneedecke, in der keine einzelnen Kornformen erkennbar sind."]
[2,{"$f":"IF(Marschtabelle!S11=0,\"\",Marschtabelle!S11)","v":""},{"$f":"IF(Marschtabelle!U11=0,\"\",Marschtabelle!U11)","v":""},{"$f":"IF(Marschtabelle!T11=0,\"\",Marschtabelle!T11)","v":""},{"$f":"IF(Marschtabelle!V11=0,\"\",Marschtabelle!V11)","v":""},{"$f":"IF(Marschtabelle!T10=0,\"\",Marschtabelle!T10)","v":""},{"$f":"IF(Marschtabelle!AA11=0,\"\",Marschtabelle!AA11)","v":""},{"$f":"IF(Marschtabelle!Z11=0,\"\",Marschtabelle!Z11)","v":""},{"$f":"IF(C14=\"\",\"\",VLOOKUP(C14,$A$2:$B$9,2,FALSE))","v":""},{"$f":"IF(U14<8,IF(D14=\"\",\"\",VLOOKUP(D14,$L$2:$M$6,2,FALSE)),IF(F14=\"\",IF(D14=\"\",\"\",VLOOKUP(D14,$L$2:$M$6,2,FALSE)),VLOOKUP(F14,$L$2:$M$6,2,FALSE)))","v":""},{"$f":"IF(OR($G$7=1,$G$6=1,AND($G$10=TRUE,OR(E14=\"Mulde\",E14=\"Rinne\"))),1,IF(AND(D14=\"\",I14>=8),1,IF(C14=\"\",1,VLOOKUP(C14,$A$2:$D$9,4,FALSE))))","v":1},{"$f":"IF(OR($G$7=1,AND($G$6=1,H14=\"nein\")),1,IF(H14=\"\",\"\",IF(H14=\"JA\",2,1)))","v":""},{"$f":"IF(G8=1,1,IF(OR($G$7=1,$G$6=1),1,IF(AND(I14>=8,D14=\"\"),1,IF(G14=\"\",\"\",IF(G14=\"1-gr.Gr.\",2,IF(G14=\"2-4\",2,IF(G14=\"1-kl.Gr.\",3,1)))))))","v":1},{"$f":"MAX(J14:M14)","v":1},{"$f":"MAX(J14:M14)","v":1},{"$f":"LARGE(J14:M14,2)","v":1},{"$f":"O14*P14","v":1},{"$f":"IF(J14=\"\",1,J14)","v":1},{"$f":"IF(MAX(K14:L14)=\"\",1,MAX(K14:L14))","v":1},{"$f":"IF(M14=\"\",1,M14)","v":1},{"$f":"IF(B14=\"\",\"\",IF(B14<$Q$3,$Q$4,$R$4))","v":""},{"$f":"IF(U14=\"\",\"\",U14/IF(U14<8,PRODUCT(IF(J14=\"\",1,J14),IF(K14=\"\",1,K14),IF(L14=\"\",1,L14),IF(M14=\"\",1,M14)),IF(OR(J14=\"\",J14<2),1,PRODUCT(IF(J14=\"\",1,J14),IF(K14=\"\",1,K14),IF(L14=\"\",1,L14),IF(M14=\"\",1,M14)))))","v":""},{"$f":"IF(U14=\"\",\"\",U14/IF(U14<8,PRODUCT(IF(J14=\"\",1,J14),IF(K14=\"\",1,K14),IF(L14=\"\",1,L14),IF(M14=\"\",1,M14)),IF(OR(J14=\"\",J14<2),1,PRODUCT(IF(J14=\"\",1,J14),IF(K14=\"\",1,K14),IF(L14=\"\",1,L14),IF(M14=\"\",1,M14)))))","v":""},{"$f":"IF(B14<$Q$3,$Q$4/IF($Q$4=2,N14,IF($Q$4=4,$Q$14,IF(R14=1,1,PRODUCT(R14,S14,T14)))),$R$4/IF($R$4=2,N14,IF($R$4=4,Q14,IF(R14=1,1,PRODUCT(R14,S14,T14)))))","v":8},null,null,null,null,null,"Entlastungsabstand","Vorsichtsmassnahme, um die Schneedecke weniger zu belasten. Im Aufstieg sollten mindestens 10 m, in der Abfahrt deutlich mehr eingehalten werden."]
[3,{"$f":"IF(Marschtabelle!S13=0,\"\",Marschtabelle!S13)","v":""},{"$f":"IF(Marschtabelle!U13=0,\"\",Marschtabelle!U13)","v":""},{"$f":"IF(Marschtabelle!T13=0,\"\",Marschtabelle!T13)","v":""},{"$f":"IF(Marschtabelle!V13=0,\"\",Marschtabelle!V13)","v":""},{"$f":"IF(Marschtabelle!X13=0,\"\",Marschtabelle!X13)","v":""},{"$f":"IF(Marschtabelle!AA13=0,\"\",Marschtabelle!AA13)","v":""},{"$f":"IF(Marschtabelle!Z13=0,\"\",Marschtabelle!Z13)","v":""},"",{"$f":"IF(U15<8,IF(D15=\"\",\"\",VLOOKUP(D15,$L$2:$M$6,2,FALSE)),IF(F15=\"\",IF(D15=\"\",\"\",VLOOKUP(D15,$L$2:$M$6,2,FALSE)),VLOOKUP(F15,$L$2:$M$6,2,FALSE)))","v":""},{"$f":"IF(OR($G$7=1,$G$6=1,AND($G$10=TRUE,OR(E15=\"Mulde\",E15=\"Rinne\"))),1,IF(AND(D15=\"\",I15>=8),1,IF(C15=\"\",1,VLOOKUP(C15,$A$2:$D$9,4,FALSE))))","v":1},"",{"$f":"IF(G8=1,1,IF(AND(I15>=8,D15=\"\"),1,IF(G15=\"\",\"\",IF(G15=\"1-gr.Gr.\",2,IF(G15=\"2-4\",2,IF(G15=\"1-kl.Gr.\",3,1))))))","v":1},1,1,1,1,1,1,1,{"$f":"IF(B15=\"\",\"\",IF(B15<$Q$3,$Q$4,$R$4))","v":""},{"$f":"IF(U15=\"\",\"\",U15/IF(U15<8,PRODUCT(IF(J15=\"\",1,J15),IF(K15=\"\",1,K15),IF(L15=\"\",1,L15),IF(M15=\"\",1,M15)),IF(OR(J15=\"\",J15<2),1,PRODUCT(IF(J15=\"\",1,J15),IF(K15=\"\",1,K15),IF(L15=\"\",1,L15),IF(M15=\"\",1,M15)))))","v":""},{"$f":"IF(U15=\"\",\"\",U15/IF(U15<8,PRODUCT(IF(J15=\"\",1,J15),IF(K15=\"\",1,K15),IF(L15=\"\",1,L15),IF(M15=\"\",1,M15)),IF(OR(J15=\"\",J15<2),1,PRODUCT(IF(J15=\"\",1,J15),IF(K15=\"\",1,K15),IF(L15=\"\",1,L15),IF(M15=\"\",1,M15)))))","v":""},null,null,null,null,null,null,"erheblich (LWS)","Lawinenwarnstufe 3 / Risikopotenzial = 8 - 12\nUngünstige Tourenbedingungen, die sehr gute Kenntnisse der Gefahrenstellen erfordern."]
[4,{"$f":"IF(Marschtabelle!S15=0,\"\",Marschtabelle!S15)","v":""},{"$f":"IF(Marschtabelle!U15=0,\"\",Marschtabelle!U15)","v":""},{"$f":"IF(Marschtabelle!T15=0,\"\",Marschtabelle!T15)","v":""},{"$f":"IF(Marschtabelle!V15=0,\"\",Marschtabelle!V15)","v":""},{"$f":"IF(Marschtabelle!X15=0,\"\",Marschtabelle!X15)","v":""},{"$f":"IF(Marschtabelle!AA15=0,\"\",Marschtabelle!AA15)","v":""},{"$f":"IF(Marschtabelle!Z15=0,\"\",Marschtabelle!Z15)","v":""},"","",1,"",{"$f":"IF(G8=1,1,IF(AND(I16>=8,D16=\"\"),1,IF(G16=\"\",\"\",IF(G16=\"1-gr.Gr.\",2,IF(G16=\"2-4\",2,IF(G16=\"1-kl.Gr.\",3,1))))))","v":1},1,1,1,1,1,1,1,"","",{"$f":"IF(U16=\"\",\"\",U16/IF(U16<8,PRODUCT(IF(J16=\"\",1,J16),IF(K16=\"\",1,K16),IF(L16=\"\",1,L16),IF(M16=\"\",1,M16)),IF(OR(J16=\"\",J16<2),1,PRODUCT(IF(J16=\"\",1,J16),IF(K16=\"\",1,K16),IF(L16=\"\",1,L16),IF(M16=\"\",1,M16)))))","v":""},null,null,null,null,null,null,"exponiert","Ausgesetzt gegenüber Wind, Himmelsrichtung, Sonne, Lawinen oder allgemein einer Gefahr (windseitig, schattenseitig, sonnenseitig)."]
[5,{"$f":"IF(Marschtabelle!S17=0,\"\",Marschtabelle!S17)","v":""},{"$f":"IF(Marschtabelle!U17=0,\"\",Marschtabelle!U17)","v":""},{"$f":"IF(Marschtabelle!T17=0,\"\",Marschtabelle!T17)","v":""},{"$f":"IF(Marschtabelle!V17=0,\"\",Marschtabelle!V17)","v":""},{"$f":"IF(Marschtabelle!X17=0,\"\",Marschtabelle!X17)","v":""},{"$f":"IF(Marschtabelle!AA17=0,\"\",Marschtabelle!AA17)","v":""},{"$f":"IF(Marschtabelle!Z17=0,\"\",Marschtabelle!Z17)","v":""},"","",1,"",{"$f":"IF(G8=1,1,IF(AND(I17>=8,D17=\"\"),1,IF(G17=\"\",\"\",IF(G17=\"1-gr.Gr.\",2,IF(G17=\"2-4\",2,IF(G17=\"1-kl.Gr.\",3,1))))))","v":1},1,1,1,1,1,1,1,"","","",null,null,null,null,null,null,"Exposition","Himmelsrichtung, in die ein Hang abfällt. Ein Nordhang fällt z.B. nach Norden ab."]
[6,{"$f":"IF(Marschtabelle!S19=0,\"\",Marschtabelle!S19)","v":""},{"$f":"IF(Marschtabelle!U19=0,\"\",Marschtabelle!U19)","v":""},{"$f":"IF(Marschtabelle!T19=0,\"\",Marschtabelle!T19)","v":""},{"$f":"IF(Marschtabelle!V19=0,\"\",Marschtabelle!V19)","v":""},{"$f":"IF(Marschtabelle!X19=0,\"\",Marschtabelle!X19)","v":""},{"$f":"IF(Marschtabelle!AA19=0,\"\",Marschtabelle!AA19)","v":""},{"$f":"IF(Marschtabelle!Z19=0,\"\",Marschtabelle!Z19)","v":""},"","",1,"",{"$f":"IF(G8=1,1,IF(AND(I18>=8,D18=\"\"),1,IF(G18=\"\",\"\",IF(G18=\"1-gr.Gr.\",2,IF(G18=\"2-4\",2,IF(G18=\"1-kl.Gr.\",3,1))))))","v":1},1,1,1,1,1,1,1,"","","",null,null,null,null,null,null,"extrem steil","Gelände mit einer Hangneigung über 40°. Extremes Steilgelände ist gekennzeichnet durch Kammnähe, ungünstige Geländeformen sowie Bodenbeschaffenheit. Daher ist es besonders lawinengefährdet. Felsdurchsetztes Steilgelände, unbewachsene Moränen und die Auslösepunkte von trockenen Lockerschneelawinen sind meistens über 40° steil."]
[7,{"$f":"IF(Marschtabelle!S21=0,\"\",Marschtabelle!S21)","v":""},{"$f":"IF(Marschtabelle!U21=0,\"\",Marschtabelle!U21)","v":""},{"$f":"IF(Marschtabelle!T21=0,\"\",Marschtabelle!T21)","v":""},{"$f":"IF(Marschtabelle!V21=0,\"\",Marschtabelle!V21)","v":""},{"$f":"IF(Marschtabelle!X21=0,\"\",Marschtabelle!X21)","v":""},{"$f":"IF(Marschtabelle!AA21=0,\"\",Marschtabelle!AA21)","v":""},{"$f":"IF(Marschtabelle!Z21=0,\"\",Marschtabelle!Z21)","v":""},"","",1,"",{"$f":"IF(G8=1,1,IF(AND(I19>=8,D19=\"\"),1,IF(G19=\"\",\"\",IF(G19=\"1-gr.Gr.\",2,IF(G19=\"2-4\",2,IF(G19=\"1-kl.Gr.\",3,1))))))","v":1},1,1,1,1,1,1,1,"","","",null,null,null,null,null,null,"Felswandfuss","Unteres sichtbares Ende einer Felswand, wo die Bodenoberfläche von einer Felswand oft in Geröll übergeht. Damit verbunden ist in der Regel ein Geländeknick unterschiedlicher Ausprägung, wobei die Hangneigung gegen unten abnimmt. Am Felswandfuss beginnt meist extrem steiles, oft aber auch steiles Gelände."]
[8,{"$f":"IF(Marschtabelle!S23=0,\"\",Marschtabelle!S23)","v":""},{"$f":"IF(Marschtabelle!U23=0,\"\",Marschtabelle!U23)","v":""},{"$f":"IF(Marschtabelle!T23=0,\"\",Marschtabelle!T23)","v":""},{"$f":"IF(Marschtabelle!V23=0,\"\",Marschtabelle!V23)","v":""},{"$f":"IF(Marschtabelle!X23=0,\"\",Marschtabelle!X23)","v":""},{"$f":"IF(Marschtabelle!AA23=0,\"\",Marschtabelle!AA23)","v":""},{"$f":"IF(Marschtabelle!Z23=0,\"\",Marschtabelle!Z23)","v":""},"","",1,"",{"$f":"IF(G8=1,1,IF(AND(I20>=8,D20=\"\"),1,IF(G20=\"\",\"\",IF(G20=\"1-gr.Gr.\",2,IF(G20=\"2-4\",2,IF(G20=\"1-kl.Gr.\",3,1))))))","v":1},1,1,1,1,1,1,1,"","","",null,null,null,null,null,null,"Fernauslösung","Auslösung einer Schneebrettlawine auf Distanz. Der auslösende Wintersportler befindet sich dabei nicht innerhalb der abgleitenden Schneetafel (kann aber natürlich vom abgleitenden Schnee von oben erfasst und verschüttet werden)."]
[9,{"$f":"IF(Marschtabelle!S25=0,\"\",Marschtabelle!S25)","v":""},{"$f":"IF(Marschtabelle!U25=0,\"\",Marschtabelle!U25)","v":""},{"$f":"IF(Marschtabelle!T25=0,\"\",Marschtabelle!T25)","v":""},{"$f":"IF(Marschtabelle!V25=0,\"\",Marschtabelle!V25)","v":""},{"$f":"IF(Marschtabelle!X25=0,\"\",Marschtabelle!X25)","v":""},{"$f":"IF(Marschtabelle!AA25=0,\"\",Marschtabelle!AA25)","v":""},{"$f":"IF(Marschtabelle!Z25=0,\"\",Marschtabelle!Z25)","v":""},"","",1,"",{"$f":"IF(G8=1,1,IF(AND(I21>=8,D21=\"\"),1,IF(G21=\"\",\"\",IF(G21=\"1-gr.Gr.\",2,IF(G21=\"2-4\",2,IF(G21=\"1-kl.Gr.\",3,1))))))","v":1},1,1,1,1,1,1,1,"","","",null,null,null,null,null,null,"Festigkeit (im Schnee)","Die Fähigkeit, Kräfte im Kristallgefüge einer Schneeschicht zu übertragen, begründet durch Anzahl und Qualität der Bindungen zwischen den Eiskristallen."]
[10,{"$f":"IF(Marschtabelle!S27=0,\"\",Marschtabelle!S27)","v":""},{"$f":"IF(Marschtabelle!U27=0,\"\",Marschtabelle!U27)","v":""},{"$f":"IF(Marschtabelle!T27=0,\"\",Marschtabelle!T27)","v":""},{"$f":"IF(Marschtabelle!V27=0,\"\",Marschtabelle!V27)","v":""},{"$f":"IF(Marschtabelle!X27=0,\"\",Marschtabelle!X27)","v":""},{"$f":"IF(Marschtabelle!AA27=0,\"\",Marschtabelle!AA27)","v":""},{"$f":"IF(Marschtabelle!Z27=0,\"\",Marschtabelle!Z27)","v":""},"","",1,"",{"$f":"IF(G8=1,1,IF(AND(I22>=8,D22=\"\"),1,IF(G22=\"\",\"\",IF(G22=\"1-gr.Gr.\",2,IF(G22=\"2-4\",2,IF(G22=\"1-kl.Gr.\",3,1))))))","v":1},1,1,1,1,1,1,1,"","","",null,null,null,null,null,null,"Festigkeitsabnahme, -verlust (in einer Schneeschicht)","Bindungen zwischen den Eiskristallen werden schwächer bzw. gehen verloren, so dass die Fähigkeit der Kräfteübertragung zwischen den Kristallen abnimmt."]
[11,{"$f":"IF(Marschtabelle!S29=0,\"\",Marschtabelle!S29)","v":""},{"$f":"IF(Marschtabelle!U29=0,\"\",Marschtabelle!U29)","v":""},{"$f":"IF(Marschtabelle!T29=0,\"\",Marschtabelle!T29)","v":""},{"$f":"IF(Marschtabelle!V29=0,\"\",Marschtabelle!V29)","v":""},{"$f":"IF(Marschtabelle!X29=0,\"\",Marschtabelle!X29)","v":""},{"$f":"IF(Marschtabelle!AA29=0,\"\",Marschtabelle!AA29)","v":""},{"$f":"IF(Marschtabelle!Z29=0,\"\",Marschtabelle!Z29)","v":""},"","",1,"",{"$f":"IF(G8=1,1,IF(AND(I23>=8,D23=\"\"),1,IF(G23=\"\",\"\",IF(G23=\"1-gr.Gr.\",2,IF(G23=\"2-4\",2,IF(G23=\"1-kl.Gr.\",3,1))))))","v":1},1,1,1,1,1,1,1,"","","",null,null,null,null,null,null,"Festigkeitszunahme (in einer Schneeschicht)","Bindungen zwischen den Eiskristallen (Anzahl und/oder Qualität der Bindungsstellen) nehmen zu, so dass größere Kräfte zwischen ihnen übertragen werden können."]
[12,{"$f":"IF(Marschtabelle!S31=0,\"\",Marschtabelle!S31)","v":""},{"$f":"IF(Marschtabelle!U31=0,\"\",Marschtabelle!U31)","v":""},{"$f":"IF(Marschtabelle!T31=0,\"\",Marschtabelle!T31)","v":""},{"$f":"IF(Marschtabelle!V31=0,\"\",Marschtabelle!V31)","v":""},{"$f":"IF(Marschtabelle!X31=0,\"\",Marschtabelle!X31)","v":""},{"$f":"IF(Marschtabelle!AA31=0,\"\",Marschtabelle!AA31)","v":""},{"$f":"IF(Marschtabelle!Z31=0,\"\",Marschtabelle!Z31)","v":""},"","",1,"",{"$f":"IF(G8=1,1,IF(AND(I24>=8,D24=\"\"),1,IF(G24=\"\",\"\",IF(G24=\"1-gr.Gr.\",2,IF(G24=\"2-4\",2,IF(G24=\"1-kl.Gr.\",3,1))))))","v":1},1,1,1,1,1,1,1,"","","",null,null,null,null,null,null,"filziger Schnee","Unregelmässige, gabelige Formen als Folge der abbauenden Schneeumwandlung. Bruchteile der ursprünglichen Gestalt der Neuschneekristalle sind oft noch erkennbar. Typische Korngrösse: um 1 bis 2 mm."]
[13,{"$f":"IF(Marschtabelle!S33=0,\"\",Marschtabelle!S33)","v":""},{"$f":"IF(Marschtabelle!U33=0,\"\",Marschtabelle!U33)","v":""},{"$f":"IF(Marschtabelle!T33=0,\"\",Marschtabelle!T33)","v":""},{"$f":"IF(Marschtabelle!V33=0,\"\",Marschtabelle!V33)","v":""},{"$f":"IF(Marschtabelle!X33=0,\"\",Marschtabelle!X33)","v":""},{"$f":"IF(Marschtabelle!AA33=0,\"\",Marschtabelle!AA33)","v":""},{"$f":"IF(Marschtabelle!Z33=0,\"\",Marschtabelle!Z33)","v":""},"","",1,"",{"$f":"IF(G8=1,1,IF(AND(I25>=8,D25=\"\"),1,IF(G25=\"\",\"\",IF(G25=\"1-gr.Gr.\",2,IF(G25=\"2-4\",2,IF(G25=\"1-kl.Gr.\",3,1))))))","v":1},1,1,1,1,1,1,1,"","","",null,null,null,null,null,null,"Firn","Schnee – meist auf Gletschern – der vergangenen Jahre, stark umgewandelt und verdichtet durch Schmelzen und Wiedergefrieren sowie durch Druck der überlagernden Schneemassen. Im Volksmund auch verwendet für den oberflächlich aufgeweichten Harschdeckel der saisonalen Schneedecke."]
[14,{"$f":"IF(Marschtabelle!S35=0,\"\",Marschtabelle!S35)","v":""},{"$f":"IF(Marschtabelle!U35=0,\"\",Marschtabelle!U35)","v":""},{"$f":"IF(Marschtabelle!T35=0,\"\",Marschtabelle!T35)","v":""},{"$f":"IF(Marschtabelle!V35=0,\"\",Marschtabelle!V35)","v":""},{"$f":"IF(Marschtabelle!X35=0,\"\",Marschtabelle!X35)","v":""},{"$f":"IF(Marschtabelle!AA35=0,\"\",Marschtabelle!AA35)","v":""},{"$f":"IF(Marschtabelle!Z35=0,\"\",Marschtabelle!Z35)","v":""},"","",1,"",{"$f":"IF(G8=1,1,IF(AND(I26>=8,D26=\"\"),1,IF(G26=\"\",\"\",IF(G26=\"1-gr.Gr.\",2,IF(G26=\"2-4\",2,IF(G26=\"1-kl.Gr.\",3,1))))))","v":1},1,1,1,1,1,1,1,"","","",null,null,null,null,null,null,"freie Hanglage (kammfern)","Gebiet, das nicht direkt in Verbindung mit dem Kamm steht. Vielfach entspricht dies dem Übergang aus extremem Steilgelände ins Steilgelände. Auch Steilstufen und kleinere Erhebungen, die nicht direkt mit dem Kamm zusammenhängen gehören in dieses Gebiet. Kammnahe und kammferne Gebiete sind nicht scharf voneinander abgetrennt. Die Grenze ist als Bandbreite zu verstehen."]
[15,{"$f":"IF(Marschtabelle!S37=0,\"\",Marschtabelle!S37)","v":""},{"$f":"IF(Marschtabelle!U37=0,\"\",Marschtabelle!U37)","v":""},{"$f":"IF(Marschtabelle!T37=0,\"\",Marschtabelle!T37)","v":""},{"$f":"IF(Marschtabelle!V37=0,\"\",Marschtabelle!V37)","v":""},{"$f":"IF(Marschtabelle!X37=0,\"\",Marschtabelle!X37)","v":""},{"$f":"IF(Marschtabelle!AA37=0,\"\",Marschtabelle!AA37)","v":""},{"$f":"IF(Marschtabelle!Z37=0,\"\",Marschtabelle!Z37)","v":""},"","",1,"",{"$f":"IF(G8=1,1,IF(AND(I27>=8,D27=\"\"),1,IF(G27=\"\",\"\",IF(G27=\"1-gr.Gr.\",2,IF(G27=\"2-4\",2,IF(G27=\"1-kl.Gr.\",3,1))))))","v":1},1,1,1,1,1,1,1,"","","",null,null,null,null,null,null,"gebundener Schnee","Schnee ist “gebunden”, wenn die Schneeteilchen so miteinander verzahnt oder verwachsen (Sinterung) sind, dass beim vorsichtigen Ausstechen eines Blockes dieser nicht zerfällt. Gebundener Schnee entsteht bei der Ablagerung windverfrachteten Schnees oder als Folge der abbauenden Umwandlung. Gebundener Schnee ist neben der Existenz einer Schwachschicht eine weitere Bedingung für die Bildung von Schneebrettlawinen.\nTriebschnee ist immer gebundener Schnee und daher besonders anfällig für Schneebrettlawinen."]
["Munter",{"$f":"'Wetter- & Lawinenlage'!E34","v":1800},{"$f":"IF('Wetter- & Lawinenlage'!L20=\"\",\"\",'Wetter- & Lawinenlage'!L20)","v":""},{"$f":"IF('Wetter- & Lawinenlage'!$I$21=\"\",\"\",VLOOKUP('Wetter- & Lawinenlage'!$I$21,$K$2:$L$6,2,FALSE))","v":"=35°"},null,{"$f":"IF('Wetter- & Lawinenlage'!$I$20=\"\",\"\",VLOOKUP('Wetter- & Lawinenlage'!$I$20,$K$2:$L$6,2,FALSE))","v":"<30°"},{"$f":"IF('Wetter- & Lawinenlage'!$S$20=\"\",\"\",VLOOKUP('Wetter- & Lawinenlage'!$S$20,Nebenrechnungen!$K$7:$L$9,2,FALSE))","v":"1-gr.Gr."},{"$f":"IF('Wetter- & Lawinenlage'!$O$20=\"\",\"nein\",(IF('Wetter- & Lawinenlage'!$O$20=\"unbe-fahren\",\"nein\",\"ja\")))","v":"ja"},{"$f":"IF($C$28=\"\",\"\",VLOOKUP($C$28,$A$2:$B$9,2,FALSE))","v":""},{"$f":"IF(U28<8,IF(D28=\"\",\"\",VLOOKUP(D28,$L$2:$M$6,2,FALSE)),IF(F28=\"\",IF(D28=\"\",\"\",VLOOKUP(D28,$L$2:$M$6,2,FALSE)),MIN(VLOOKUP(F28,$L$2:$M$6,2,FALSE),VLOOKUP(D28,$L$2:$M$6,2,FALSE))))","v":3},{"$f":"IF(AND($G$10=TRUE,OR('Wetter- & Lawinenlage'!AA20=\"Rinne\",'Wetter- & Lawinenlage'!AA20=\"Mulde\")),1,IF(OR($G$7=1,$G$6=1),1,IF(AND($D$28=\"\",$R$4>=8),1,IF($C$28=\"\",1,VLOOKUP($C$28,$A$2:$D$9,4,FALSE)))))","v":1},2,{"$f":"IF('Wetter- & Lawinenlage'!$S$20=\"\",\"\",IF(G8=1,1,IF(AND($R$4>=8,$D$28=\"\"),1,IF($G$28=\"\",\"\",IF($G$28=\"1-gr.Gr.\",2,IF($G$28=\"2-4\",2,IF($G$28=\"1-kl.Gr.\",3,1)))))))","v":2},{"$f":"MAX($J$28:$M$28)","v":3},{"$f":"MAX(J28:M28)","v":3},{"$f":"LARGE(J28:M28,2)","v":2},{"$f":"O28*P28","v":6},3,2,2,{"$f":"R4","v":8},0.66666666666666663,0.66666666666666663,null,null,null,null,null,null,"Gefahrenstelle","Ort, an der Personen oder Objekte von Lawinen erfasst werden können. Im Lawinenlagebericht meist verwendet in folgendem Sinn: Stelle, an der es bei Belastung durch Wintersportler zur Lawinenauslösung kommen kann. In der Praxis wird aus dem textlichen Zusammenhang im Lagebericht die verwendete Bedeutung des Begriffs klar."]
["Munter",{"$f":"'Wetter- & Lawinenlage'!E34","v":1800},{"$f":"IF('Wetter- & Lawinenlage'!L20=\"\",\"\",'Wetter- & Lawinenlage'!L20)","v":""},{"$f":"IF('Wetter- & Lawinenlage'!$I$21=\"\",\"\",VLOOKUP('Wetter- & Lawinenlage'!$I$21,$K$2:$L$6,2,FALSE))","v":"=35°"},null,{"$f":"IF('Wetter- & Lawinenlage'!$I$20=\"\",\"\",VLOOKUP('Wetter- & Lawinenlage'!$I$20,$K$2:$L$6,2,FALSE))","v":"<30°"},{"$f":"IF('Wetter- & Lawinenlage'!$S$20=\"\",\"\",VLOOKUP('Wetter- & Lawinenlage'!$S$20,Nebenrechnungen!$K$7:$L$9,2,FALSE))","v":"1-gr.Gr."},{"$f":"IF('Wetter- & Lawinenlage'!$O$20=\"\",\"nein\",(IF('Wetter- & Lawinenlage'!$O$20=\"unbe-fahren\",\"nein\",\"ja\")))","v":"ja"},{"$f":"IF($C$28=\"\",\"\",VLOOKUP($C$28,$A$2:$B$9,2,FALSE))","v":""},3,{"$f":"IF(AND($G$10=TRUE,OR('Wetter- & Lawinenlage'!AA20=\"Rinne\",'Wetter- & Lawinenlage'!AA20=\"Mulde\")),1,IF(OR($G$7=1,$G$6=1),1,IF(AND($D$28=\"\",$Q$4>=8),1,IF($C$28=\"\",1,VLOOKUP($C$28,$A$2:$D$9,4,FALSE)))))","v":1},2,{"$f":"IF('Wetter- & Lawinenlage'!$S$20=\"\",\"\",IF(G8=1,1,IF(AND($R$4>=8,$D$28=\"\"),1,IF($G$28=\"\",\"\",IF($G$28=\"1-gr.Gr.\",2,IF($G$28=\"2-4\",2,IF($G$28=\"1-kl.Gr.\",3,1)))))))","v":2},{"$f":"MAX($J$28:$M$28)","v":3},{"$f":"MAX(J29:M29)","v":3},{"$f":"LARGE(J29:M29,2)","v":2},{"$f":"O29*P29","v":6},3,2,2,{"$f":"Q4","v":4},0.33333333333333331,null,null,null,null,null,null,null,"gering (LWS)","Lawinenwarnstufe 1 / Risikopotenzial = 2\nÜberwiegend sehr günstige Tourenbedingungen."]
["Temperaturverlauf",null,null,null,null,null,null,null,null,null,null,null,null,null,null,null,null,null,null,null,null,null,null,null,null,null,null,null,null,"Gleiten, Schneegleiten","Langsame Hangabwärtsbewegung der Schneedecke, begünstigt durch glatten (langes Gras, Felsplatten) oder feuchten Untergrund (einige Millimeter bis Meter pro Tag). Dabei können Gleitschneerisse oder Fischmäuler (Gleitschneemäuler) entstehen."]
["Tage","Datum",2000,3000,"Neusch.","Wind","LWS",null,null,"300m",null,"keine","morgens","gestern","kein","aus Nord","sonnig","kein",null,null,"nimmt zu","durch: Erwärmung",null,null,null,null,null,null,null,"Gleitschneemaul","Riss durch die gesamte Schneedecke, der entsteht, wenn die Schneedecke unterschiedlich schnell gleitet. Vor allem wenn in Gleitschneemäulern Schmelz- oder Regenwasser unter die talwärts liegende Schneedecke einsickert, kann es zur spontanen Entstehung von Gleitschneerutschen oder Gleitschneelawinen kommen."]
["Feldeintrag","","",null,null,null,null,null,null,"400m","kein","gering","mittags","vorgestern","schwach","aus NordWest","teils sonnig","wenig",null,null,"nimmt ab","durch: Neuschnee",null,null,null,null,null,null,null,"groß (LWS)","Lawinenwarnstufe 4 / Risikopotenzial ≥ 16\nEs ist dringend empfohlen, gesicherte Pisten nicht zu verlassen!"]
[null,{"$f":"B34+1","v":"2012-04-30"},null,null,null,null,null,null,null,"500m","5 cm","mäßig","nachmittags","<3 Tage","mäßig","aus West","bewölkt","zeitweise",null,null,"stagniert","durch: Triebschnee",null,null,null,null,null,null,null,"Hangkante","Von Hangkante spricht man, wenn die Neigung innerhalb eines Hanges markant zunimmt. Bevorzugter Ort für die Bildung von Triebschneeansammlungen."]
["heute","29.04.2012",10,3,0,4,3,null,null,"600m","10 cm","stark","abends","<4 Tage","stark","aus SüdWest","stark bewölkt","ergiebig",null,null,null,"durch: aufb. Umwandlung",null,null,null,null,null,null,null,"Hangneigung","Hangneigung, gemessen in der Falllinie an der steilsten Stelle im Hang im Kartenmassstab 1:25'000 oder geschätzt im Gelände.\nmäßig steil - weniger als 30°\nsteil - 30° - 35°\nsehr steil - 35° - 40°\nextrem steil - über 40°"]
["gestern","28.04.2012",14,6,0,5,3,null,null,"700m","15 cm","mächtig","nachts","<5 Tage","stürmisch","aus NordOst",null,null,null,null,null,"durch: andauernde Kälte",null,null,null,null,null,null,null,"hochalpine Lage","Höhenlage über 3000 m"]
["vorgestern","27.04.2012",13,6,0,4,3,null,null,"800m","20 cm",null,"ganztägig","<6 Tage",null,"aus Ost",null,null,null,null,null,"durch: Setzung",null,null,null,null,null,null,null,"Hochlage","Höhenlagen über 2000 m"]
["<3 Tage","26.04.2012",8,2,0,5,3,null,null,"900m","25 cm","Temperatur-entwicklung",{"$f":"'Wetter- & Lawinenlage'!$H$71","v":10},"<7 Tage",null,"aus SüdOst",null,null,null,null,null,null,null,null,null,null,null,null,null,"Höhenlage","hochalpin: über 3000 m ü. NN\nhoch: 2000 - 3000 m ü. NN \nmittel: 1000 - 2000 m ü. NN \ntief: unter 1000 m ü. NN"]
["<4 Tage","25.04.2012",3,-5,0,2,3,null,null,"1000m","30 cm",null,1,"<2 Wochen",null,"aus Süd",null,null,null,null,null,"LWS",null,null,null,null,null,null,null,"Inklination","Hangneigung "]
["<5 Tage","24.04.2012",-4,-10,0,2,2,null,null,"1100m","35 cm","es bleibt über 0° C",2,"<3 Wochen",null,null,null,null,null,null,null,1,null,null,null,null,null,null,null,"kammferne Lage","Gebiet, das nicht direkt in Verbindung mit dem Kamm steht. Vielfach entspricht dies dem Übergang aus extremem Steilgelände ins Steilgelände. Auch Steilstufen und kleinere Erhebungen, die nicht direkt mit dem Kamm zusammenhängen gehören in dieses Gebiet. Kammnahe und kammferne Gebiete sind nicht scharf voneinander abgetrennt. Die Grenze ist als Bandbreite zu verstehen."]
["<6 Tage","23.04.2012",0,-8,20,2,2,null,null,"1200m","40 cm","es bleibt unter 0°C",3,{"$f":"VLOOKUP(M37,L72:R81,IF(L57=\"k. A.\",2,IF(L57=0,3,IF(L57=1,4,IF(L57=2,5,IF(L57=3,6,IF(L57=4,7)))))))","v":2},"Lawinentendenz",null,null,null,null,null,null,2,null,null,null,null,null,null,null,"Kammlage","Gebiet, das direkt an den Kamm bzw. Grat oder Gipfel  angrenzt und besonders stark durch den Wind beeinflusst wird."]
["<7 Tage","22.04.2012",-4,-10,0,4,2,null,null,"1300m","45 cm","es wird kälter",4,"k. A.","Temperatur-tendenz?",null,null,null,null,null,null,3,null,null,null,null,null,null,null,"kritische Neuschneemenge","10 bis 20 cm bei ungünstigen Bedingungen \n\n20 bis 30 cm bei mittleren Bedingungen\n \n30 bis 50 cm bei günstigen Bedingungen"]
["<8 Tage","21.04.2012",1,-7,10,3,2,null,null,"1400m","50 cm","erheblich kälter",5,0,"gleichbleibend",null,null,null,null,null,null,4,null,null,null,null,null,null,null,"kupiertes Gelände","Gelände bzw. Geländerelief, das nicht glatt verläuft, sondern steile oder tiefe Kleinformen bis zu einigen Metern Höhenunterschied aufweist. Auch kurzwellige Geländestufen können solches Terrain prägen. Oft erscheint das Terrain als lawinensicher, obwohl große Lawinen auch in Geländestufen gelangen. Die Senken und Tälchen, Rinnen und Mulden werden manchmal zu gefährlichen Fallen, in denen potenziell lawinöser Triebschnee enthalten ist oder in denen man tief verschüttet werden kann."]
["<9 Tage","20.04.2012",-2,-9,2,2,2,null,null,"1500m","55 cm","es wird wärmer",6,-1,"eher abnehmend",null,null,null,null,null,null,5,null,null,null,null,null,null,null,"Lee-Hang","Hang, der dem Wind abgewandt ist. Hier wird viel Schnee abgelagert und es liegt oft ein Mehrfaches der mittleren Schneehöhe."]
["<10 Tage","19.04.2012",-3,-9,10,2,2,null,null,"1600m","60 cm","erheblich wärmer",7,1,"eher zunehmend",null,null,null,null,null,null,null,null,null,null,null,null,null,null,"Luv-Hang","Hang, der dem Wind zugewandt ist."]
["<11 Tage","18.04.2012",-4,-9,0,2,2,null,null,"1700m","65 cm","wärmer im Tagesgang",8,-2,"abnehmend",null,null,null,null,null,null,null,null,null,null,null,null,null,null,"mäßig (LWS)","Lawinenwarnstufe 2 / Risikopotenzial = 4\nIn der Regel günstige Tourenbedingungen."]
["<12 Tage","17.04.2012",-5,-12,5,1,2,null,null,"1800m","70 cm","kälter im Tagesgang",9,2,"zunehmend",null,null,null,null,null,null,null,null,null,null,null,null,null,null,"mäßig steil","Hangneigugung weniger als 30°"]
["<13 Tage","16.04.2012",-6,-12,10,3,2,null,null,"1900m","75 cm",null,null,3,"deutlich zunehmend",null,null,null,null,null,null,null,null,null,null,null,null,null,null,"Mulde","Runde oder längliche, sanfte Vertiefung in flachem Gelände oder in einem Hang. Bevorzugter Ort für die Bildung von Triebschnee-ansammlungen."]
["<14 Tage","15.04.2012",-1,-8,0,2,2,null,null,"2000m","80 cm","Windstärken",null,null,"Schneeverfrachtung",null,null,null,null,null,null,null,null,null,null,null,null,null,null,"Neuschnee","Wenig umgewandelter und wenig verfestigter Schnee der aktuellen oder einer kurz zurückliegenden Niederschlagsperiode. Typische Korngrösse: 1 bis 3 mm. Im Lawinenlagebericht wird der entsprechende Zeitraum angegeben."]
["<15 Tage","14.04.2012",-1,-8,0,2,2,null,null,"2100m","85 cm",0,"kein",null,0,"keine",null,null,null,null,null,null,null,null,null,null,null,null,null,"Neuschneebedingungen (ungünstig)","intensiver Niederschlag in kurzer Zeit, starker Wind (>50 km/h, d.h. hörbar, Wald rauscht), tiefe Temperaturen (kälter als –5 bis –10°C), ungünstige Unterlage (Oberflächenreif, Harsch, Eis, aufgebaute Altschneeoberfläche, schwache Altschneedecke), selten befahren"]
["<16 Tage","13.04.2012",-2,-7,0,1,2,null,null,"2200m","90 cm",1,"schwach",null,1,"beginnend",null,null,null,null,null,null,null,null,null,null,null,null,null,"Neuschneemenge (kritisch)","10 bis 20 cm bei ungünstigen Bedingungen \n\n20 bis 30 cm bei mittleren Bedingungen\n \n30 bis 50 cm bei günstigen Bedingungen"]
["<17 Tage","12.04.2012",2,-6,15,2,2,null,null,"2300m","95 cm",2,"mäßig",null,2,"mäßig",null,null,null,null,null,null,null,null,null,null,null,null,null,"Nullgradgrenze","Höhe über dem Meer, mit einer Lufttemperatur von 0°C in der freien Atmosphäre."]
["<18 Tage","11.04.2012",-5,-11,0,2,2,null,null,"2400m","100 cm",3,"lebhaft",null,3,"umfangreich",null,null,null,null,null,null,null,null,null,null,null,null,null,"Oberflächenreif","Transparente, plättchenförmige Eiskristalle, die sich durch das Ausfällen von Feuchtigkeit (Sublimation) aus der Luft an der kalten Schneeoberfläche bilden. Eingeschneiter Oberflächenreif bildet eine besonders labile Schwachschicht in der Schneedecke, daher sind Geländestelle, in denen sich leicht Oberflächereif bildet (schattige Hänge, Hänge in der Nähe von Wäldern oder Seen), besonders anfällig für Schneebrettlawinen."]
["<19 Tage","10.04.2012",3,-6,0,4,2,null,null,"2500m",null,4,"stark",null,4,"mächtig",null,null,null,null,null,null,null,null,null,null,null,null,null,"Passlage","Tief liegender Übergang von einem Tal ins andere. Mit der Verengung am Passübergang ist eine gegenüber der Umgebung erhöhte Windgeschwindigkeit verbunden, was zu intensivierter Schneeumlagerungen führt."]
["<20 Tage","09.04.2012",-10,-15,10,3,2,null,null,"2600m",null,5,"stürmisch",null,null,null,null,null,null,null,null,null,null,null,null,null,null,null,null,"Rinne, Runse","In der Regel steile und langgestreckte Erosionsfurche. Bevorzugter Ort für die Bildung von Triebschneeansammlungen."]
["<21 Tage","08.04.2012",-9,-17,10,3,3,null,null,"2700m",null,null,null,null,null,null,null,null,null,null,null,null,null,null,null,null,null,null,null,"Rippe","Längliche, vom umliegenden Gelände deutlich abgesetzte, talwärts verlaufende Erhebung."]
["<22 Tage","07.04.2012",-3,-8,0,3,2,null,null,"2800m",null,{"$f":"IF(Q70=\"k. A.\",2,Q70)","v":3},"Schneeverfrachtung",null,null,null,null,null,null,null,null,null,null,null,null,null,null,null,null,"Rissbildung","In einer spröden Schneedecke können sich Risse bilden. Diese deuten auf eine gewisse Spannung in der Schneedecke hin."]
["<23 Tage","06.04.2012",1,-5,10,2,2,null,null,"2900m",null,{"$f":"Q70","v":3},"Neuschneemenge",null,null,null,null,null,null,null,null,null,null,null,null,null,null,null,null,"Rutsch","Schneeumlagerungen mit sehr geringer Verschüttungsgefahr, jedoch Absturzgefahr. Relativ harmlos für Personen."]
["<24 Tage","05.04.2012",2,-4,0,1,2,null,null,"3000m",null,null,"Wind",0,10,20,30,">30",null,null,null,null,null,null,null,null,null,null,null,"Schattenhang","Geländeteil, welcher durch die Sonnenstrahlung nicht oder nur unbedeutend beeinflusst wird. Im Hochwinter mit tiefem Sonnenstand mehr verbreitet als gegen den Frühling mit höher werdendem Sonnenstand. Je nach Abschattung durch den Nahhorizont kommen Schattenhänge in allen Expositionen und nicht nur in Nordhängen vor."]
["<25 Tage","04.04.2012",3,-5,0,2,2,null,null,"3100m",null,null,0,0,0,1,2,3,null,null,null,null,null,null,null,null,null,null,null,"Schneefallgrenze","Höhe über Meer, bis zu welcher der Niederschlag überwiegend als Schnee fällt und am Boden liegen bleibt. Sie liegt im Mittel 300 m tiefer als die  Nullgradgrenze. Bei intensiven Niederschlägen und/oder abgeschlossenen Tälern kann sie auch bis zu 600m unter die Nullgradgrenze absinken."]
["<26 Tage","03.04.2012",4,-5,0,2,1,null,null,"3200m",null,null,1,0,0,1,2,3,null,null,null,null,null,null,null,null,null,null,null,"Schneeverfrachtung","Durch den Wind hervorgerufene Umlagerung von Schnee. Schneeverfrachtung beginnt ab rund 4m/s (ca. 15km/h) Windgeschwindigkeit bei lockerem und ab 10m/s (35km/h) bei etwas verfestigtem Schnee. Die Schneeverfrachtung wächst in der dritten Potenz der Windgeschwindigkeit. Doppelte Windgeschwindigkeit ergibt achtfache Menge an verfrachtetem Schnee! Ein Verfrachtungsmaximum wird bei Windgeschwindigkeiten um 50 bis 80 km/h erreicht, weil danach die Erodierbarkeit der Schneedecke abnimmt."]
["<27 Tage","02.04.2012",3,-4,0,1,1,null,null,"3300m",null,null,2,0,1,2,2,3,null,null,null,null,null,null,null,null,null,null,null,"Schwachschichten","Schichten innerhalb der Schneedecke, die eine geringe Festigkeit aufweisen, so dass Brüche im Kristallgefüge entstehen und sich fortsetzen können. Typische Schwachschichten sind: eingeschneiter Oberflächenreif, aufbauend umgewandelte Schichten oder überdeckter lockerer Neuschnee."]
["<28 Tage","01.04.2012",-8,-12,0,3,1,null,null,"3400m",null,null,3,1,2,2,3,4,null,null,null,null,null,null,null,null,null,null,null,"sehr groß (LWS)"]
["29 Tage","31.03.2012",0,-6,0,4,1,null,null,"3500m",null,null,4,2,3,3,4,4,null,null,null,null,null,null,null,null,null,null,null,"sehr steil","Gelände mit Hangneigung zwischen 35° und 40°, ungeachtet seiner Form und Beschaffenheit."]
["30 Tage","30.03.2012",-2,-8,5,4,2,null,null,"3600m",null,null,5,3,3,4,4,4,null,null,null,null,null,null,null,null,null,null,null,"steil","Gelände mit Hangneigung grösser als 30°, ungeachtet seiner Form und Beschaffenheit. Sind im Skiaufstieg Spitzkehren notwendig, ist der Hang steiler als 30°."]
["31 Tage","29.03.2012",3,-4,0,4,1,null,null,"3700m",null,null,null,null,null,null,null,null,null,null,null,null,null,null,null,null,null,null,null,"störanfällig","Eine Schneedecke ist störanfällig, wenn es bei Zusatzbelastung in einer Schicht der Schneedecke zum Bruch kommen kann."]
["32 Tage","28.03.2012",6,-2,0,1,1,null,null,"3800m",null,null,null,null,null,null,null,null,null,null,null,null,null,null,null,null,null,null,null,"Strahlung","Energietransport mit Hilfe elektromagnetischer Wellen. Man unterscheidet die kurzwellige (sichtbares Licht) und die langwellige Strahlung (Wärmestrahlung)."]
["33 Tage","27.03.2012",2,-4,0,2,1,null,null,"3900m",null,null,"Tendenz der Lawinengefahr",null,null,null,null,null,null,null,null,null,null,null,null,null,null,null,null,"Tagesgang","Die Lawinengefahr kann innerhalb eines Tages einer starken Schwankung unterworfen sein. Typisch ist dies im Frühjahr, wenn nach einer klaren Nacht die Lawinengefahr am Morgen niedrig ist und mit der Sonneneinstrahlung und tageszeitlichen Erwärmung markant ansteigt."]
["34 Tage","26.03.2012",2,-4,0,1,1,null,null,"4000m",null,"Temperatur-entwicklung","Schneeverfrachtung (2-Tages-Wert)",null,null,null,null,null,null,null,null,null,null,null,null,null,null,null,null,"tragfähige Schneedecke","oberflächlich verfestigte Schneedecke, die das Gewicht einer Person trägt."]
["35 Tage","25.03.2012",0,-7,0,2,2,null,null,"4100m",null,null,"heute","gestern","vorgestern",null,"2-Tages-Wert",null,null,null,null,null,null,null,null,null,null,null,null,"Triebschnee","Ist das Ergebnis der Schneeverfrachtung: Im Windschattenbereich abgelagerte, mehr oder weniger dicht gepackte Schneeschicht mit oft spröden (zerbrechlichen) Kornbindungen.  Bevorzugte Ablagerungsbereiche liegen in kammnahen Hängen, Rinnen, Mulden oder an Hangkanten."]
["36 Tage","24.03.2012",2,-6,0,1,2,null,null,"4200m",null,null,{"$f":"VLOOKUP($F$34,$M$59:$R$64,IF($E$34=0,2,IF($E$34<=10,3,IF($E$34<=20,4,IF($E$34<=30,5,IF($E$34>30,6))))))","v":2},{"$f":"VLOOKUP($F$35,$M$59:$R$64,IF($E$35=0,2,IF($E$35<=10,3,IF($E$35<=20,4,IF($E$35<=30,5,IF($E$35>30,6))))))","v":3},null,null,{"$f":"IF(AND(OR(M70=0,M70=1,M70=2),OR(N70=0,N70=1,N70=2)),MAX(M70:N70),IF(OR(M70=3,N70=3),3,IF(OR(M70=4,N70=4),4,IF(OR(M70=\"k. A.\",N70=\"k. A.\"),\"k. A.\",MAX(M70:N70)))))","v":3},null,null,null,"Marschtabelle: GPS-Daten, Marschzahlen, Distanzen",null,null,null,null,null,null,null,null,"Triebschneeablagerung (Mächtigkeit)","kleine Triebschneeablagerung: \n5 - 20 cm mächtig\n\nmittlere Triebschneeablagerung:\n20 - 50 cm mächtig \n\ngrosse Triebschneeablagerung:\nüber 50 cm mächtig "]
["37 Tage","23.03.2012",3,-5,0,1,2,null,null,"4300m",null,null,"k. A.",0,1,2,3,4,null,null,"WP","Länge O\n( lon )","Breite N\n( lat )","Höhe","dx (lon2 - lon1)\nin Meter","dy (lat 2 - lat 1)\nin Meter","Distanz (m) = \nsqrt (dx^2 + dy^2)","arctan","Marschzahl","Triebschneeablagerung (Umfang)","vereinzelte / einzelne Triebschneeablagerungen: wenige Triebschnee-ablagerungen von meist geringer räumlicher Ausdehnung.\n\numfangreiche Triebschneeablagerungen: zahlreiche, meist große Triebschneeablagerungen an Hängen verschiedener Exposition."]
["38 Tage","22.03.2012",6,-2,0,2,2,null,null,"4400m",null,1,"k. A.","k. A.","k. A.","k. A.","k. A.","k. A.",null,null,{"$f":"Marschtabelle!A9","v":0},{"$f":"Marschtabelle!G8","v":0},{"$f":"Marschtabelle!G9","v":0},{"$f":"Marschtabelle!H9","v":0},{"$f":"IF(V73=0,\"\",71.5*1000*(V73-V72))","v":""},{"$f":"IF(W73=0,\"\",111.3*(W73-W72)*1000)","v":""},{"$f":"IF(OR(Y72=\"\",Z72=\"\"),\"\",SQRT(Y72^(2)+Z72^(2)))","v":""},{"$f":"IF(OR(Y72=\"\",Z72=\"\"),\"\",IF(Y72=0,90,ABS(DEGREES(ATAN(Z72/Y72)))))","v":""},{"$f":"IF(AB72=\"\",\"\",IF(AND(Y72>0,Z72>0),90-AB72,IF(AND(Y72>0,Z72<0),90+AB72,IF(AND(Y72<0,Z72<0),270-AB72,270+AB72))))","v":""},"Übergang von wenig zu viel Schnee","Übergangsbereich von abgewehten Stellen hin zur Schneedecke, meist in Kammnähe oder an Hangkanten. Durch die dünne Schneeauflage sind potenzielle Schwachschichten hier besonders störanfällig."]
["39 Tage","21.03.2012",4,-3,0,3,2,null,null,null,null,2,"k. A.",1,1,1,2,2,null,null,{"$f":"Marschtabelle!A11","v":0},{"$f":"Marschtabelle!G10","v":0},{"$f":"Marschtabelle!G11","v":0},{"$f":"Marschtabelle!H11","v":0},"",{"$f":"IF(W74=0,\"\",111.3*(W74-W73)*1000)","v":""},{"$f":"IF(OR(Y73=\"\",Z73=\"\"),\"\",SQRT(Y73^(2)+Z73^(2)))","v":""},{"$f":"IF(OR(Y73=\"\",Z73=\"\"),\"\",IF(Y73=0,90,ABS(DEGREES(ATAN(Z73/Y73)))))","v":""},{"$f":"IF(AB73=\"\",\"\",IF(AND(Y73>0,Z73>0),90-AB73,IF(AND(Y73>0,Z73<0),90+AB73,IF(AND(Y73<0,Z73<0),270-AB73,270+AB73))))","v":""},"ungebundener Schnee","Der Schnee hat keinen Zusammenhalt (keine Kohäsion). Der Begriff „ungebundener Schnee“ wird u.a. im Zusammenhang mit Neuschnee oder stark aufgebautem Schnee verwendet, gilt aber definitionsgemäss auch für stark durchnässten Schnee. Ungebundener Schnee kann zur Bildung von Lockerschneelawinen führen."]
["40 Tage","20.03.2012",-4,-10,25,3,2,null,null,null,null,3,"k. A.",0,0,1,2,2,null,null,{"$f":"Marschtabelle!A13","v":0},{"$f":"Marschtabelle!G12","v":0},{"$f":"Marschtabelle!G13","v":0},{"$f":"Marschtabelle!H13","v":0},"",{"$f":"IF(W75=0,\"\",111.3*1000*(W75-W74))","v":""},"","","","Wächte","Durch Schneeverfrachtung hervor-\ngerufene, stark verdichtete  Schneeablagerung direkt auf der windabgewandten Seite eines Grates mit keilförmigem Überhang auf die Leeseite."]
["41 Tage","19.03.2012",-5,-10,20,2,2,null,null,null,null,4,"k. A.",-1,0,0,2,2,null,null,{"$f":"Marschtabelle!A15","v":0},{"$f":"Marschtabelle!G14","v":0},{"$f":"Marschtabelle!G15","v":0},{"$f":"Marschtabelle!H15","v":0},"","","","","","Waldgrenze","Klimatisch und waldgeschichtlich bedingte Grenzzone, bis zu der ein Wald noch eine lawinenschutzwirksame Funktion ausüben kann. In der Schweiz:\nAlpensüdhang und Voralpen: 1650 -1850 m \nNördlicher Alpenkamm: 1800 -2000 m \nEngadin, bzw. Inneralpin: 2000 -2200 m"]
["42 Tage","18.03.2012",-1,-8,15,4,1,null,null,null,null,5,"k. A.",1,1,1,2,2,null,null,{"$f":"Marschtabelle!A17","v":0},{"$f":"Marschtabelle!G16","v":0},{"$f":"Marschtabelle!G17","v":0},{"$f":"Marschtabelle!H17","v":0},"","","","","","Wildschnee","sehr leichter Neuschnee."]
["43 Tage","17.03.2012",4,-3,0,4,1,null,null,null,null,6,"k. A.",1,1,1,2,2,null,null,{"$f":"Marschtabelle!A19","v":0},{"$f":"Marschtabelle!G18","v":0},{"$f":"Marschtabelle!G19","v":0},{"$f":"Marschtabelle!H19","v":0},"","","","","","Windgangeln, Zastrugi","Erosionsform auf der Schneedecke, wobei die steile, erodierte Seite gegen den Wind (Luv) zeigt. Nicht zu verwechseln mit den Dünen."]
["44 Tage","16.03.2012",7,2,0,1,1,null,null,null,null,7,"k. A.",2,2,2,3,3,null,null,{"$f":"Marschtabelle!A21","v":0},{"$f":"Marschtabelle!G20","v":0},{"$f":"Marschtabelle!G21","v":0},{"$f":"Marschtabelle!H21","v":0},"","","","","","Windharsch, Windharschdeckel","Durch den Wind stark verfestigte Schicht an der Oberfläche der Schneedecke."]
["45 Tage","15.03.2012",5,-1,0,1,1,null,null,null,null,8,"k. A.",2,2,2,2,2,null,null,{"$f":"Marschtabelle!A23","v":0},{"$f":"Marschtabelle!G22","v":0},{"$f":"Marschtabelle!G23","v":0},{"$f":"Marschtabelle!H23","v":0},"","","","","","Windstärke","schwach: 0 –20km/h\n\nmässig (inkl. mässig bis stark): 20 –40km/h\n\nstark (inkl. stark bis stürmisch): 40 –60km/h\n\nstürmisch (inkl. Sturm und schwerer Sturm): 60 –100km/h\n\norkanartiger Sturm: >100km/h"]
["46 Tage","14.03.2012",4,-3,0,3,1,null,null,null,null,9,"k. A.",-2,-1,0,2,3,null,null,{"$f":"Marschtabelle!A25","v":0},{"$f":"Marschtabelle!G24","v":0},{"$f":"Marschtabelle!G25","v":0},{"$f":"Marschtabelle!H25","v":0},"","","","","","Windverfrachtung","Schnee, der vom Wind verfrachtet wurde, wobei die Schneekristalle durch Rollbewegungen, Hüpfen, Abheben und Aufschlagen stark zertrümmert und auf 10 bis 20% der ursprünglichen Grösse verkleinert werden. Die kleinen Bruchstücke werden vom Wind bei der Ablagerung ineinander gerüttelt, so dass v.a. im Leehang (dem Wind abgekehrt) eine geschichtete, dichte Packung entsteht. Der Schnee ist dann gebunden, kann aber durchaus noch weich sein. Durch die Verdichtung entstehen spröde (zerbrechliche) Schneebretter."]
["47 Tage","13.03.2012",0,-3,0,2,1,null,null,null,null,10,"k. A.",-1,-1,0,2,3,null,null,{"$f":"Marschtabelle!A27","v":0},{"$f":"Marschtabelle!G26","v":0},{"$f":"Marschtabelle!G27","v":0},{"$f":"Marschtabelle!H27","v":0},"","","","","","Wummgeräusch, Setzungsgeräusch","Markantes Geräusch, das sich beim abrupten Setzen der Schneedecke ergibt, wenn das Kristallgefüge in einer Schwachschicht zusammenbricht. Wummgeräusche sind ein Zeichen einer instabilen Schneedecke und oft verbunden mit Rissbildung. Wiederholte Wummgeräusche gelten als deutliches Alarmzeichen."]
["48 Tage","12.03.2012",0,-4,5,4,2,null,null,null,null,null,null,null,null,null,null,null,null,null,{"$f":"Marschtabelle!A29","v":0},{"$f":"Marschtabelle!G28","v":0},{"$f":"Marschtabelle!G29","v":0},{"$f":"Marschtabelle!H29","v":0},"","","","","","Zastrugi, Windgangeln","Erosionsform auf der Schneedecke, wobei die steile, erodierte Seite gegen den Wind (Luv) zeigt. Nicht zu verwechseln mit den Dünen."]
["49 Tage","11.03.2012",-3,-6,0,4,2,null,null,"Pause",null,null,null,null,null,null,null,null,null,null,{"$f":"Marschtabelle!A31","v":0},{"$f":"Marschtabelle!G30","v":0},{"$f":"Marschtabelle!G31","v":0},{"$f":"Marschtabelle!H31","v":0},"","","","","","Zusatzbelastung","geringe Zusatzbelastung:\nEinzelner Skifahrer oder Snowboarder, sanft schwingend, nicht stürzend /\nGruppe mit Entlastungsabständen (mindestens 10 m) /\nSchneeschuhgeher\n\ngroße Zusatzbelastung:\nZwei oder mehrere Skifahrer / Snowboarder etc. ohne Entlastungsabstände\nPistenfahrzeug, Schneefeldsprengung\nEinzelner Fussgänger / Alpinist"]
["50 Tage","10.03.2012",-3,-6,0,2,2,null,null,null,null,null,null,null,null,null,null,null,null,null,{"$f":"Marschtabelle!A33","v":0},{"$f":"Marschtabelle!G32","v":0},{"$f":"Marschtabelle!G33","v":0},{"$f":"Marschtabelle!H33","v":0},"","","","",""]
["51 Tage","09.03.2012",-7,-15,10,2,2,null,null,"00:05:00",null,null,null,null,null,null,null,null,null,null,{"$f":"Marschtabelle!A35","v":0},{"$f":"Marschtabelle!G34","v":0},{"$f":"Marschtabelle!G35","v":0},{"$f":"Marschtabelle!H335","v":0},"","","","",""]
["52 Tage","08.03.2012",-8,-14,0,4,2,null,null,"00:10:00",null,null,null,null,null,null,null,null,null,null,{"$f":"Marschtabelle!A37","v":0},{"$f":"Marschtabelle!G36","v":0},{"$f":"Marschtabelle!G37","v":0},{"$f":"Marschtabelle!H37","v":0},null,null,"","",""]
["53 Tage","07.03.2012",-1,-8,0,2,2,null,null,"00:15:00",null,null,"Temperatur-entwicklung",{"$f":"'Wetter- & Lawinenlage'!$H$71","v":10},null,"Anmerkungen-unten:",null,"Anmerkungen-oben:"]
["54 Tage","06.03.2012",-9,-12,20,2,2,null,null,"00:20:00",null,null,null,1]
["55 Tage","05.03.2012",-8,-13,0,3,2,null,null,"00:25:00",null,null,"es bleibt über 0° C",2,null,"Reduktionspotenzial nicht voll ausschöpfen!",null,"SO, S- & SW-Hänge im Tagesgang: Selbstauslösung möglich"]
["56 Tage","04.03.2012",0,-6,0,1,2,null,null,"00:30:00",null,null,"es bleibt unter 0°C",3,null,"Ende der Tour am frühen Nachmittag (14:00 Uhr) anstreben",null,"Erster schöner Tag nach Niederschlagsperiode"]
["57 Tage","03.03.2012",4,-3,0,1,2,null,null,"00:35:00",null,null,"es wird kälter (< 0°C)",4,null,"Enge Zeitplanung beachten",null,"Große Strecke u / o viele Höhenmeter"]
["58 Tage","02.03.2012",9,0,0,1,2,null,null,"00:40:00",null,null,"erheblich kälter (weit < 0°C)",5,null,"Früh einsetzende Dunkelheit beachten",null,"Zum Teil unerfahrene Tourengeher in der Gruppe"]
["59 Tage","01.03.2012",8,2,0,2,3,null,null,"00:45:00",null,null,"es wird wärmer (> 0°C)",6,null,null,null,"Starke Abstrahlung vor Neuschnee / eingeschn. Oberflächenreif"]
["60 Tage","29.2.12",0,-3,0,3,null,null,null,"00:50:00",null,null,"erheblich wärmer (weit > 0°C)",7,null,null,null,"Große Gruppe / hohe Schneedeckenbelastung"]
["61 Tage","28.2.12",-3,-9,0,4,null,null,null,"00:55:00",null,null,"wärmer im Tagesgang",8,null,null,null,"Tour entlang Kammlagen / Nigg-Effekt beachten"]
["62 Tage","27.2.12",-5,-12,20,4,null,null,null,"01:00:00",null,null,"kälter im Tagesgang",9]
["63 Tage","26.2.12",-8,-13,5,4,null,null,null,"01:05:00",null,null,"Schwankend 0°C +/- x°C",10]
["64 Tage","25.2.12",-1,-8,0,3,null,null,null,"01:10:00"]
["65 Tage","24.2.12",5,0,0,3,null,null,null,"01:15:00"]
["66 Tage","23.2.12",0,-5,0,4,null,null,null,"01:20:00"]
["67 Tage","22.2.12",-5,-8,0,2,null,null,null,"01:25:00",null,null,"k. A."]
["68 Tage","21.2.12",-4,-9,0,1,null,null,null,"01:30:00",null,0,"kein"]
["69 Tage","20.2.12",-11,-17,10,1,null,null,null,"01:35:00",null,1,"schwach"]
["70 Tage","19.2.12",-10,-9,null,2,null,null,null,"01:40:00",null,2,"mäßig"]
["71 Tage","18.2.12",-6,-8,0,2,null,null,null,"01:45:00",null,3,"lebhaft"]
["72 Tage","17.2.12",-8,-12,0,3,null,null,null,"01:50:00",null,4,"kräftig"]
["73 Tage","16.2.12",-11,-19,0,4,null,null,null,"01:55:00",null,5,"stürmisch"]
["74 Tage","15.2.12",-9,-16,0,5,null,null,null,"02:00:00"]
["75 Tage","14.2.12",-16,-19,0,2,null,null,null,"02:05:00"]
["76 Tage","13.2.12",-16,-19,0,2,null,null,null,"02:10:00"]
["77 Tage","12.2.12",-20,-20,0,3,null,null,null,"02:15:00"]
["78 Tage","11.2.12",-18,-20,0,3,null,null,null,"02:20:00"]
["79 Tage","10.2.12",-20,-26,0,1,null,null,null,"02:25:00"]
["80 Tage","9.2.12",-11,-18,0,2,null,null,null,"02:30:00"]
["81 Tage","8.2.12",-4,-9,0,4,null,null,null,"02:35:00"]
["82 Tage","7.2.12",-22,-20,0,3,null,null,null,"02:40:00"]
["83 Tage","6.2.12",-21,-21,0,3,null,null,null,"02:45:00"]
["84 Tage","5.2.12",-20,-21,null,2,null,null,null,"02:50:00"]
["85 Tage","4.2.12",-20,-24,0,5,null,null,null,"02:55:00"]
["86 Tage","3.2.12",-19,-22,0,5,null,null,null,"03:00:00"]
["87 Tage","2.2.12",-14,-17,5,4]
["88 Tage","1.2.12",-12,-16,0]
["89 Tage","31.1.12",-9,-14,0]
["90 Tage","30.1.12",-6,-10,0]
["91 Tage","29.1.12",-5,-10,0,null,null,null,null,"LVS"]
["92 Tage","28.1.12",-6,-12,0,null,null,null,null,"Equ"]
["93 Tage","27.1.12",-4,-8,0,null,null,null,null,"HE"]
["94 Tage","26.1.12",-10,-14,0,null,null,null,null,"SE"]
["95 Tage","25.1.12",-11,-19,20,null,null,null,null,"\\ F"]
["96 Tage","24.1.12",-9,-17,10,null,null,null,null,"F+"]
["97 Tage","23.1.12",-6,-12,0,null,null,null,null,"SD"]
["98 Tage","22.1.12",-4,-10,30,null,null,null,null,"SR"]
["99 Tage","21.1.12",-3,-10,40]
["100 Tage","20.1.12",-9,-14,20]
["101 Tage","19.1.12",0,-6,0,null,null,null,null,1]
["102 Tage","18.1.12",-5,-12,0,null,null,null,null,2]
["103 Tage","17.1.12",-5,-11,0,null,null,null,null,2.5]
["104 Tage","16.1.12",-9,-13,0,null,null,null,null,3]
["105 Tage","15.1.12",-13,-16,0,null,null,null,null,3.5]
["106 Tage","14.1.12",-11,-18,0,null,null,null,null,4]
["107 Tage","13.1.12",-5,-10,10,null,null,null,null,5]
["108 Tage","12.1.12",2,-5,0]
["109 Tage","11.1.12",-3,-7,0]
["110 Tage","10.1.12",-4,-12,10]
["111 Tage","9.1.12",-5,-12,15]
["112 Tage","8.1.12",-8,-15,20]
["113 Tage","7.1.12",-8,-14,0,null,null,null,null,"Speicherpfade"]
["114 Tage","6.1.12",-9,-17,30,null,null,null,null,"D:\\"]
["115 Tage","5.1.12",-3,-8,0,null,null,null,null,"D"]
["116 Tage","4.1.12",-6,-13,0,null,null,null,null,"D"]
["117 Tage","3.1.12",-7,-13,0,null,null,null,null,"D:\\"]
["118 Tage","2.1.12",2,-5,15]
["119 Tage","1.1.12",3,-3,0]
["120 Tage","31.12.11",-10,-7,30]
["121 Tage","30.12.11",-9,-15,20]
["122 Tage","29.12.11",-4,-10,5]
["123 Tage","28.12.11",5,-1,0]
["124 Tage","27.12.11",2,-2,0]
["125 Tage","26.12.11",-4,-7,0]
["126 Tage","25.12.11",-11,-17,0]
["127 Tage","24.12.11",-4,-10,10]
["128 Tage","23.12.11",2,-2,0]
["129 Tage","22.12.11",-6,-12,30]
["130 Tage","21.12.11",-9,-16,20]

{"sheet":"Wegpunkte","index":5,"n_rows":0,"n_cols":0,"rows_kept":0,"cut":false,"hidden":true,"merged":[]}